{"text_format":"2","workbook":"xlsx","n_sheets":3,"sheets":["ARKUSZ OCENY","Skale oceny","a techn 1"],"not_rendered":{"charts":0,"images":0,"macros":0,"external_links":0,"defined_names":9,"comments":0,"pivot_tables":0},"unopened":[],"bounds":{"document_bytes":16777216,"sheet_cells":100000,"run_cost":"one","rows_first":2000,"rows_last":500,"rows_between":2000,"halvings":0,"cell_chars":16384,"cell_head_chars":4096},"cells_cut":0,"cells_raw":0,"read":"whole","date_system":"1900"}

{"sheet":"ARKUSZ OCENY","index":0,"n_rows":180,"n_cols":16,"rows_kept":180,"cut":false,"hidden":false,"merged":[[0,1,0,3]]}
["UPWr","Załącznik nr 2 do Regulaminu SOOP ARKUSZ OCENY                                     stanowiska kierowniczego"]
[{"$nulls":4},"LP","NR","Stanowisko","Rozszerzenie","JO1","JO2","Imię i nazwisko","Oceniający (imię i nazwisko)","Stanowisko oceniającego","Przełożony wyższego szczebla (imię i nazwisko)","Data poprzedniej oceny","Data oceny bieżącej"]
["Pracownik (imię i nazwisko)","Wpis ręczny",null,null,1.0,{"$f":"C$4","v":""},{"$f":"B$4","v":"Z bazy opisów stanowisk"},{"$f":"B$5","v":"Z bazy opisów stanowisk"},{"$f":"B$6","v":"Z bazy opisów stanowisk"},{"$f":"B$7","v":"Z bazy opisów stanowisk"},{"$f":"B$3","v":"Wpis ręczny"},{"$f":"B$8","v":"Wpis ręczny"},{"$f":"B$9","v":"Z bazy opisów stanowisk"},{"$f":"B$10","v":"Wpis ręczny"},{"$f":"B$11","v":"Wpis ręczny"},{"$f":"B$12","v":"Wpis ręczny"}]
["Stanowisko","Z bazy opisów stanowisk",null,null,2.0,"","Z bazy opisów stanowisk","Z bazy opisów stanowisk","Z bazy opisów stanowisk","Z bazy opisów stanowisk","Wpis ręczny","Wpis ręczny","Z bazy opisów stanowisk","Wpis ręczny","Wpis ręczny","Wpis ręczny"]
["Rozszerzenie","Z bazy opisów stanowisk",null,null,3.0,"","Z bazy opisów stanowisk","Z bazy opisów stanowisk","Z bazy opisów stanowisk","Z bazy opisów stanowisk","Wpis ręczny","Wpis ręczny","Z bazy opisów stanowisk","Wpis ręczny","Wpis ręczny","Wpis ręczny"]
["Jednostka orgqnizacyjna 1","Z bazy opisów stanowisk",null,null,4.0,"","Z bazy opisów stanowisk","Z bazy opisów stanowisk","Z bazy opisów stanowisk","Z bazy opisów stanowisk","Wpis ręczny","Wpis ręczny","Z bazy opisów stanowisk","Wpis ręczny","Wpis ręczny","Wpis ręczny"]
["Jednostka orgqnizacyjna 2","Z bazy opisów stanowisk",null,null,5.0,"","Z bazy opisów stanowisk","Z bazy opisów stanowisk","Z bazy opisów stanowisk","Z bazy opisów stanowisk","Wpis ręczny","Wpis ręczny","Z bazy opisów stanowisk","Wpis ręczny","Wpis ręczny","Wpis ręczny"]
["Oceniający (imię i nazwisko)","Wpis ręczny",null,null,6.0,"","Z bazy opisów stanowisk","Z bazy opisów stanowisk","Z bazy opisów stanowisk","Z bazy opisów stanowisk","Wpis ręczny","Wpis ręczny","Z bazy opisów stanowisk","Wpis ręczny","Wpis ręczny","Wpis ręczny"]
["Stanowisko oceniającego","Z bazy opisów stanowisk",null,null,7.0,"","Z bazy opisów stanowisk","Z bazy opisów stanowisk","Z bazy opisów stanowisk","Z bazy opisów stanowisk","Wpis ręczny","Wpis ręczny","Z bazy opisów stanowisk","Wpis ręczny","Wpis ręczny","Wpis ręczny"]
["Przełożony wyższego szczebla (imię i nazwisko)","Wpis ręczny",null,null,8.0,"","Z bazy opisów stanowisk","Z bazy opisów stanowisk","Z bazy opisów stanowisk","Z bazy opisów stanowisk","Wpis ręczny","Wpis ręczny","Z bazy opisów stanowisk","Wpis ręczny","Wpis ręczny","Wpis ręczny"]
["Data poprzedniej oceny","Wpis ręczny",null,null,9.0,"","Z bazy opisów stanowisk","Z bazy opisów stanowisk","Z bazy opisów stanowisk","Z bazy opisów stanowisk","Wpis ręczny","Wpis ręczny","Z bazy opisów stanowisk","Wpis ręczny","Wpis ręczny","Wpis ręczny"]
["Data oceny bieżącej","Wpis ręczny",null,null,10.0,"","Z bazy opisów stanowisk","Z bazy opisów stanowisk","Z bazy opisów stanowisk","Z bazy opisów stanowisk","Wpis ręczny","Wpis ręczny","Z bazy opisów stanowisk","Wpis ręczny","Wpis ręczny","Wpis ręczny"]
["1. ZADANIA",null,null,null,11.0,"","Z bazy opisów stanowisk","Z bazy opisów stanowisk","Z bazy opisów stanowisk","Z bazy opisów stanowisk","Wpis ręczny","Wpis ręczny","Z bazy opisów stanowisk","Wpis ręczny","Wpis ręczny","Wpis ręczny"]
["ZADANIA STANOWISKOWE",null,null,null,12.0,"","Z bazy opisów stanowisk","Z bazy opisów stanowisk","Z bazy opisów stanowisk","Z bazy opisów stanowisk","Wpis ręczny","Wpis ręczny","Z bazy opisów stanowisk","Wpis ręczny","Wpis ręczny","Wpis ręczny"]
[1.0,null,null,null,13.0,"","Z bazy opisów stanowisk","Z bazy opisów stanowisk","Z bazy opisów stanowisk","Z bazy opisów stanowisk","Wpis ręczny","Wpis ręczny","Z bazy opisów stanowisk","Wpis ręczny","Wpis ręczny","Wpis ręczny"]
[2.0,null,null,null,14.0,"","Z bazy opisów stanowisk","Z bazy opisów stanowisk","Z bazy opisów stanowisk","Z bazy opisów stanowisk","Wpis ręczny","Wpis ręczny","Z bazy opisów stanowisk","Wpis ręczny","Wpis ręczny","Wpis ręczny"]
[3.0,null,null,null,15.0,"","Z bazy opisów stanowisk","Z bazy opisów stanowisk","Z bazy opisów stanowisk","Z bazy opisów stanowisk","Wpis ręczny","Wpis ręczny","Z bazy opisów stanowisk","Wpis ręczny","Wpis ręczny","Wpis ręczny"]
[4.0,null,null,null,16.0,"","Z bazy opisów stanowisk","Z bazy opisów stanowisk","Z bazy opisów stanowisk","Z bazy opisów stanowisk","Wpis ręczny","Wpis ręczny","Z bazy opisów stanowisk","Wpis ręczny","Wpis ręczny","Wpis ręczny"]
[5.0,null,null,null,17.0,"","Z bazy opisów stanowisk","Z bazy opisów stanowisk","Z bazy opisów stanowisk","Z bazy opisów stanowisk","Wpis ręczny","Wpis ręczny","Z bazy opisów stanowisk","Wpis ręczny","Wpis ręczny","Wpis ręczny"]
[6.0,null,null,null,18.0,"","Z bazy opisów stanowisk","Z bazy opisów stanowisk","Z bazy opisów stanowisk","Z bazy opisów stanowisk","Wpis ręczny","Wpis ręczny","Z bazy opisów stanowisk","Wpis ręczny","Wpis ręczny","Wpis ręczny"]
[7.0,null,null,null,19.0,"","Z bazy opisów stanowisk","Z bazy opisów stanowisk","Z bazy opisów stanowisk","Z bazy opisów stanowisk","Wpis ręczny","Wpis ręczny","Z bazy opisów stanowisk","Wpis ręczny","Wpis ręczny","Wpis ręczny"]
[8.0,null,null,null,20.0,"","Z bazy opisów stanowisk","Z bazy opisów stanowisk","Z bazy opisów stanowisk","Z bazy opisów stanowisk","Wpis ręczny","Wpis ręczny","Z bazy opisów stanowisk","Wpis ręczny","Wpis ręczny","Wpis ręczny"]
[9.0,null,null,null,21.0,"","Z bazy opisów stanowisk","Z bazy opisów stanowisk","Z bazy opisów stanowisk","Z bazy opisów stanowisk","Wpis ręczny","Wpis ręczny","Z bazy opisów stanowisk","Wpis ręczny","Wpis ręczny","Wpis ręczny"]
[10.0,null,null,null,22.0,"","Z bazy opisów stanowisk","Z bazy opisów stanowisk","Z bazy opisów stanowisk","Z bazy opisów stanowisk","Wpis ręczny","Wpis ręczny","Z bazy opisów stanowisk","Wpis ręczny","Wpis ręczny","Wpis ręczny"]
[11.0,null,null,null,23.0,"","Z bazy opisów stanowisk","Z bazy opisów stanowisk","Z bazy opisów stanowisk","Z bazy opisów stanowisk","Wpis ręczny","Wpis ręczny","Z bazy opisów stanowisk","Wpis ręczny","Wpis ręczny","Wpis ręczny"]
[12.0,null,null,null,24.0,"","Z bazy opisów stanowisk","Z bazy opisów stanowisk","Z bazy opisów stanowisk","Z bazy opisów stanowisk","Wpis ręczny","Wpis ręczny","Z bazy opisów stanowisk","Wpis ręczny","Wpis ręczny","Wpis ręczny"]
[13.0,null,null,null,25.0,"","Z bazy opisów stanowisk","Z bazy opisów stanowisk","Z bazy opisów stanowisk","Z bazy opisów stanowisk","Wpis ręczny","Wpis ręczny","Z bazy opisów stanowisk","Wpis ręczny","Wpis ręczny","Wpis ręczny"]
[14.0,null,null,null,26.0,"","Z bazy opisów stanowisk","Z bazy opisów stanowisk","Z bazy opisów stanowisk","Z bazy opisów stanowisk","Wpis ręczny","Wpis ręczny","Z bazy opisów stanowisk","Wpis ręczny","Wpis ręczny","Wpis ręczny"]
[15.0,null,null,null,27.0,"","Z bazy opisów stanowisk","Z bazy opisów stanowisk","Z bazy opisów stanowisk","Z bazy opisów stanowisk","Wpis ręczny","Wpis ręczny","Z bazy opisów stanowisk","Wpis ręczny","Wpis ręczny","Wpis ręczny"]
[16.0,null,null,null,28.0,"","Z bazy opisów stanowisk","Z bazy opisów stanowisk","Z bazy opisów stanowisk","Z bazy opisów stanowisk","Wpis ręczny","Wpis ręczny","Z bazy opisów stanowisk","Wpis ręczny","Wpis ręczny","Wpis ręczny"]
[17.0,null,null,null,29.0,"","Z bazy opisów stanowisk","Z bazy opisów stanowisk","Z bazy opisów stanowisk","Z bazy opisów stanowisk","Wpis ręczny","Wpis ręczny","Z bazy opisów stanowisk","Wpis ręczny","Wpis ręczny","Wpis ręczny"]
[18.0,null,null,null,30.0,"","Z bazy opisów stanowisk","Z bazy opisów stanowisk","Z bazy opisów stanowisk","Z bazy opisów stanowisk","Wpis ręczny","Wpis ręczny","Z bazy opisów stanowisk","Wpis ręczny","Wpis ręczny","Wpis ręczny"]
[19.0,null,null,null,31.0,"","Z bazy opisów stanowisk","Z bazy opisów stanowisk","Z bazy opisów stanowisk","Z bazy opisów stanowisk","Wpis ręczny","Wpis ręczny","Z bazy opisów stanowisk","Wpis ręczny","Wpis ręczny","Wpis ręczny"]
[20.0,null,null,null,32.0,"","Z bazy opisów stanowisk","Z bazy opisów stanowisk","Z bazy opisów stanowisk","Z bazy opisów stanowisk","Wpis ręczny","Wpis ręczny","Z bazy opisów stanowisk","Wpis ręczny","Wpis ręczny","Wpis ręczny"]
["1.1. Rok",null,null,null,33.0,"","Z bazy opisów stanowisk","Z bazy opisów stanowisk","Z bazy opisów stanowisk","Z bazy opisów stanowisk","Wpis ręczny","Wpis ręczny","Z bazy opisów stanowisk","Wpis ręczny","Wpis ręczny","Wpis ręczny"]
["Zadanie 1",null,null,null,34.0,"","Z bazy opisów stanowisk","Z bazy opisów stanowisk","Z bazy opisów stanowisk","Z bazy opisów stanowisk","Wpis ręczny","Wpis ręczny","Z bazy opisów stanowisk","Wpis ręczny","Wpis ręczny","Wpis ręczny"]
["Kryterium oceny",null,null,null,35.0,"","Z bazy opisów stanowisk","Z bazy opisów stanowisk","Z bazy opisów stanowisk","Z bazy opisów stanowisk","Wpis ręczny","Wpis ręczny","Z bazy opisów stanowisk","Wpis ręczny","Wpis ręczny","Wpis ręczny"]
["Harmonogram realizacji",null,null,null,36.0,"","Z bazy opisów stanowisk","Z bazy opisów stanowisk","Z bazy opisów stanowisk","Z bazy opisów stanowisk","Wpis ręczny","Wpis ręczny","Z bazy opisów stanowisk","Wpis ręczny","Wpis ręczny","Wpis ręczny"]
["Komentarz",null,null,null,37.0,"","Z bazy opisów stanowisk","Z bazy opisów stanowisk","Z bazy opisów stanowisk","Z bazy opisów stanowisk","Wpis ręczny","Wpis ręczny","Z bazy opisów stanowisk","Wpis ręczny","Wpis ręczny","Wpis ręczny"]
["Kompletność realizacji","Komentarz",null,"Wybór",38.0,"","Z bazy opisów stanowisk","Z bazy opisów stanowisk","Z bazy opisów stanowisk","Z bazy opisów stanowisk","Wpis ręczny","Wpis ręczny","Z bazy opisów stanowisk","Wpis ręczny","Wpis ręczny","Wpis ręczny"]
["Terminowośc realizacji","Komentarz",null,"Wybór",39.0,"","Z bazy opisów stanowisk","Z bazy opisów stanowisk","Z bazy opisów stanowisk","Z bazy opisów stanowisk","Wpis ręczny","Wpis ręczny","Z bazy opisów stanowisk","Wpis ręczny","Wpis ręczny","Wpis ręczny"]
["Zadanie 2",null,null,null,40.0,"","Z bazy opisów stanowisk","Z bazy opisów stanowisk","Z bazy opisów stanowisk","Z bazy opisów stanowisk","Wpis ręczny","Wpis ręczny","Z bazy opisów stanowisk","Wpis ręczny","Wpis ręczny","Wpis ręczny"]
["Kryterium oceny",null,null,null,41.0,"","Z bazy opisów stanowisk","Z bazy opisów stanowisk","Z bazy opisów stanowisk","Z bazy opisów stanowisk","Wpis ręczny","Wpis ręczny","Z bazy opisów stanowisk","Wpis ręczny","Wpis ręczny","Wpis ręczny"]
["Harmonogram realizacji",null,null,null,42.0,"","Z bazy opisów stanowisk","Z bazy opisów stanowisk","Z bazy opisów stanowisk","Z bazy opisów stanowisk","Wpis ręczny","Wpis ręczny","Z bazy opisów stanowisk","Wpis ręczny","Wpis ręczny","Wpis ręczny"]
["Komentarz",null,null,null,43.0,"","Z bazy opisów stanowisk","Z bazy opisów stanowisk","Z bazy opisów stanowisk","Z bazy opisów stanowisk","Wpis ręczny","Wpis ręczny","Z bazy opisów stanowisk","Wpis ręczny","Wpis ręczny","Wpis ręczny"]
["Kompletność realizacji","Komentarz",null,"Wybór",44.0,"","Z bazy opisów stanowisk","Z bazy opisów stanowisk","Z bazy opisów stanowisk","Z bazy opisów stanowisk","Wpis ręczny","Wpis ręczny","Z bazy opisów stanowisk","Wpis ręczny","Wpis ręczny","Wpis ręczny"]
["Terminowośc realizacji","Komentarz",null,"Wybór",45.0,"","Z bazy opisów stanowisk","Z bazy opisów stanowisk","Z bazy opisów stanowisk","Z bazy opisów stanowisk","Wpis ręczny","Wpis ręczny","Z bazy opisów stanowisk","Wpis ręczny","Wpis ręczny","Wpis ręczny"]
["Zadanie 3",null,null,null,46.0,"","Z bazy opisów stanowisk","Z bazy opisów stanowisk","Z bazy opisów stanowisk","Z bazy opisów stanowisk","Wpis ręczny","Wpis ręczny","Z bazy opisów stanowisk","Wpis ręczny","Wpis ręczny","Wpis ręczny"]
["Kryterium oceny",null,null,null,47.0,"","Z bazy opisów stanowisk","Z bazy opisów stanowisk","Z bazy opisów stanowisk","Z bazy opisów stanowisk","Wpis ręczny","Wpis ręczny","Z bazy opisów stanowisk","Wpis ręczny","Wpis ręczny","Wpis ręczny"]
["Harmonogram realizacji",null,null,null,48.0,"","Z bazy opisów stanowisk","Z bazy opisów stanowisk","Z bazy opisów stanowisk","Z bazy opisów stanowisk","Wpis ręczny","Wpis ręczny","Z bazy opisów stanowisk","Wpis ręczny","Wpis ręczny","Wpis ręczny"]
["Komentarz",null,null,null,49.0,"","Z bazy opisów stanowisk","Z bazy opisów stanowisk","Z bazy opisów stanowisk","Z bazy opisów stanowisk","Wpis ręczny","Wpis ręczny","Z bazy opisów stanowisk","Wpis ręczny","Wpis ręczny","Wpis ręczny"]
["Kompletność realizacji","Komentarz",null,"Wybór",50.0,"","Z bazy opisów stanowisk","Z bazy opisów stanowisk","Z bazy opisów stanowisk","Z bazy opisów stanowisk","Wpis ręczny","Wpis ręczny","Z bazy opisów stanowisk","Wpis ręczny","Wpis ręczny","Wpis ręczny"]
["Terminowośc realizacji","Komentarz",null,"Wybór",51.0,"","Z bazy opisów stanowisk","Z bazy opisów stanowisk","Z bazy opisów stanowisk","Z bazy opisów stanowisk","Wpis ręczny","Wpis ręczny","Z bazy opisów stanowisk","Wpis ręczny","Wpis ręczny","Wpis ręczny"]
["Zadanie 4",null,null,null,53.0,"","Z bazy opisów stanowisk","Z bazy opisów stanowisk","Z bazy opisów stanowisk","Z bazy opisów stanowisk","Wpis ręczny","Wpis ręczny","Z bazy opisów stanowisk","Wpis ręczny","Wpis ręczny","Wpis ręczny"]
["Kryterium oceny",null,null,null,54.0,"","Z bazy opisów stanowisk","Z bazy opisów stanowisk","Z bazy opisów stanowisk","Z bazy opisów stanowisk","Wpis ręczny","Wpis ręczny","Z bazy opisów stanowisk","Wpis ręczny","Wpis ręczny","Wpis ręczny"]
["Harmonogram realizacji",null,null,null,55.0,"","Z bazy opisów stanowisk","Z bazy opisów stanowisk","Z bazy opisów stanowisk","Z bazy opisów stanowisk","Wpis ręczny","Wpis ręczny","Z bazy opisów stanowisk","Wpis ręczny","Wpis ręczny","Wpis ręczny"]
["Komentarz",null,null,null,56.0,"","Z bazy opisów stanowisk","Z bazy opisów stanowisk","Z bazy opisów stanowisk","Z bazy opisów stanowisk","Wpis ręczny","Wpis ręczny","Z bazy opisów stanowisk","Wpis ręczny","Wpis ręczny","Wpis ręczny"]
["Kompletność realizacji","Komentarz",null,"Wybór",57.0,"","Z bazy opisów stanowisk","Z bazy opisów stanowisk","Z bazy opisów stanowisk","Z bazy opisów stanowisk","Wpis ręczny","Wpis ręczny","Z bazy opisów stanowisk","Wpis ręczny","Wpis ręczny","Wpis ręczny"]
["Terminowośc realizacji","Komentarz",null,"Wybór",58.0,"","Z bazy opisów stanowisk","Z bazy opisów stanowisk","Z bazy opisów stanowisk","Z bazy opisów stanowisk","Wpis ręczny","Wpis ręczny","Z bazy opisów stanowisk","Wpis ręczny","Wpis ręczny","Wpis ręczny"]
["Zadanie 5",null,null,null,59.0,"","Z bazy opisów stanowisk","Z bazy opisów stanowisk","Z bazy opisów stanowisk","Z bazy opisów stanowisk","Wpis ręczny","Wpis ręczny","Z bazy opisów stanowisk","Wpis ręczny","Wpis ręczny","Wpis ręczny"]
["Kryterium oceny",null,null,null,60.0,"","Z bazy opisów stanowisk","Z bazy opisów stanowisk","Z bazy opisów stanowisk","Z bazy opisów stanowisk","Wpis ręczny","Wpis ręczny","Z bazy opisów stanowisk","Wpis ręczny","Wpis ręczny","Wpis ręczny"]
["Harmonogram realizacji",null,null,null,61.0,"","Z bazy opisów stanowisk","Z bazy opisów stanowisk","Z bazy opisów stanowisk","Z bazy opisów stanowisk","Wpis ręczny","Wpis ręczny","Z bazy opisów stanowisk","Wpis ręczny","Wpis ręczny","Wpis ręczny"]
["Komentarz",null,null,null,62.0,"","Z bazy opisów stanowisk","Z bazy opisów stanowisk","Z bazy opisów stanowisk","Z bazy opisów stanowisk","Wpis ręczny","Wpis ręczny","Z bazy opisów stanowisk","Wpis ręczny","Wpis ręczny","Wpis ręczny"]
["Kompletność realizacji","Komentarz",null,"Wybór",63.0,"","Z bazy opisów stanowisk","Z bazy opisów stanowisk","Z bazy opisów stanowisk","Z bazy opisów stanowisk","Wpis ręczny","Wpis ręczny","Z bazy opisów stanowisk","Wpis ręczny","Wpis ręczny","Wpis ręczny"]
["Terminowośc realizacji","Komentarz",null,"Wybór",64.0,"","Z bazy opisów stanowisk","Z bazy opisów stanowisk","Z bazy opisów stanowisk","Z bazy opisów stanowisk","Wpis ręczny","Wpis ręczny","Z bazy opisów stanowisk","Wpis ręczny","Wpis ręczny","Wpis ręczny"]
["Zadanie 6",null,null,null,65.0,"","Z bazy opisów stanowisk","Z bazy opisów stanowisk","Z bazy opisów stanowisk","Z bazy opisów stanowisk","Wpis ręczny","Wpis ręczny","Z bazy opisów stanowisk","Wpis ręczny","Wpis ręczny","Wpis ręczny"]
["Kryterium oceny",null,null,null,66.0,"","Z bazy opisów stanowisk","Z bazy opisów stanowisk","Z bazy opisów stanowisk","Z bazy opisów stanowisk","Wpis ręczny","Wpis ręczny","Z bazy opisów stanowisk","Wpis ręczny","Wpis ręczny","Wpis ręczny"]
["Harmonogram realizacji",null,null,null,67.0,"","Z bazy opisów stanowisk","Z bazy opisów stanowisk","Z bazy opisów stanowisk","Z bazy opisów stanowisk","Wpis ręczny","Wpis ręczny","Z bazy opisów stanowisk","Wpis ręczny","Wpis ręczny","Wpis ręczny"]
["Komentarz",null,null,null,68.0,"","Z bazy opisów stanowisk","Z bazy opisów stanowisk","Z bazy opisów stanowisk","Z bazy opisów stanowisk","Wpis ręczny","Wpis ręczny","Z bazy opisów stanowisk","Wpis ręczny","Wpis ręczny","Wpis ręczny"]
["Kompletność realizacji","Komentarz",null,"Wybór",69.0,"","Z bazy opisów stanowisk","Z bazy opisów stanowisk","Z bazy opisów stanowisk","Z bazy opisów stanowisk","Wpis ręczny","Wpis ręczny","Z bazy opisów stanowisk","Wpis ręczny","Wpis ręczny","Wpis ręczny"]
["Terminowośc realizacji","Komentarz",null,"Wybór",70.0,"","Z bazy opisów stanowisk","Z bazy opisów stanowisk","Z bazy opisów stanowisk","Z bazy opisów stanowisk","Wpis ręczny","Wpis ręczny","Z bazy opisów stanowisk","Wpis ręczny","Wpis ręczny","Wpis ręczny"]
["2. KOMPETENCJE",null,null,null,109.0,"","Z bazy opisów stanowisk","Z bazy opisów stanowisk","Z bazy opisów stanowisk","Z bazy opisów stanowisk","Wpis ręczny","Wpis ręczny","Z bazy opisów stanowisk","Wpis ręczny","Wpis ręczny","Wpis ręczny"]
["Kompetencje stałe","Zachowanie","samoocena","ocena",110.0,"","Z bazy opisów stanowisk","Z bazy opisów stanowisk","Z bazy opisów stanowisk","Z bazy opisów stanowisk","Wpis ręczny","Wpis ręczny","Z bazy opisów stanowisk","Wpis ręczny","Wpis ręczny","Wpis ręczny"]
["Efektywność działania","Powierzone zadania realizuje samodzielnie i zgodnie z ustaleniami.","Wybór","Wybór",111.0,"","Z bazy opisów stanowisk","Z bazy opisów stanowisk","Z bazy opisów stanowisk","Z bazy opisów stanowisk","Wpis ręczny","Wpis ręczny","Z bazy opisów stanowisk","Wpis ręczny","Wpis ręczny","Wpis ręczny"]
["Efektywność działania","Pracuje sprawnie i skutecznie, nie rozprasza się.","Wybór","Wybór",112.0,"","Z bazy opisów stanowisk","Z bazy opisów stanowisk","Z bazy opisów stanowisk","Z bazy opisów stanowisk","Wpis ręczny","Wpis ręczny","Z bazy opisów stanowisk","Wpis ręczny","Wpis ręczny","Wpis ręczny"]
["Efektywność działania","Osiąga cele i jakościowo dobrze realizuje zadania.","Wybór","Wybór",113.0,"","Z bazy opisów stanowisk","Z bazy opisów stanowisk","Z bazy opisów stanowisk","Z bazy opisów stanowisk","Wpis ręczny","Wpis ręczny","Z bazy opisów stanowisk","Wpis ręczny","Wpis ręczny","Wpis ręczny"]
["Efektywność działania","Efekty jego pracy są widoczne i znaczące dla efektów pracy całego zespołu.","Wybór","Wybór",114.0,"","Z bazy opisów stanowisk","Z bazy opisów stanowisk","Z bazy opisów stanowisk","Z bazy opisów stanowisk","Wpis ręczny","Wpis ręczny","Z bazy opisów stanowisk","Wpis ręczny","Wpis ręczny","Wpis ręczny"]
["Efektywność działania","Dobiera tempo pracy do zamierzonych celów.","Wybór","Wybór",115.0,"","Z bazy opisów stanowisk","Z bazy opisów stanowisk","Z bazy opisów stanowisk","Z bazy opisów stanowisk","Wpis ręczny","Wpis ręczny","Z bazy opisów stanowisk","Wpis ręczny","Wpis ręczny","Wpis ręczny"]
["Efektywność działania","Kontroluje jakość wykonywanej pracy – stara się określić normy i miary wysokiej jakości.","Wybór","Wybór",116.0,"","Z bazy opisów stanowisk","Z bazy opisów stanowisk","Z bazy opisów stanowisk","Z bazy opisów stanowisk","Wpis ręczny","Wpis ręczny","Z bazy opisów stanowisk","Wpis ręczny","Wpis ręczny","Wpis ręczny"]
["Praca zespołowa","Angażuje cały zespół, potrafi zachęcić innych do wytrwałej pracy.","Wybór","Wybór",117.0,"","Z bazy opisów stanowisk","Z bazy opisów stanowisk","Z bazy opisów stanowisk","Z bazy opisów stanowisk","Wpis ręczny","Wpis ręczny","Z bazy opisów stanowisk","Wpis ręczny","Wpis ręczny","Wpis ręczny"]
["Praca zespołowa","Buduje atmosferę współpracy w swoim zespole. Potrafi nawiązać dobrą współpracę z innymi zespołami. Nie odmawia udziału w pracach zespołu.","Wybór","Wybór",118.0,"","Z bazy opisów stanowisk","Z bazy opisów stanowisk","Z bazy opisów stanowisk","Z bazy opisów stanowisk","Wpis ręczny","Wpis ręczny","Z bazy opisów stanowisk","Wpis ręczny","Wpis ręczny","Wpis ręczny"]
["Praca zespołowa","Dobrze pracuje w zespole. Jest wytrwały i konsekwentny w zespołowym dążeniu do celu. Wspiera  innych członków, potrafi uczyć innych.","Wybór","Wybór",119.0,"","Z bazy opisów stanowisk","Z bazy opisów stanowisk","Z bazy opisów stanowisk","Z bazy opisów stanowisk","Wpis ręczny","Wpis ręczny","Z bazy opisów stanowisk","Wpis ręczny","Wpis ręczny","Wpis ręczny"]
["Praca zespołowa","Jest otwarty na pomysły członków  zespołu, wysłuchuje je, omawia, analizuje, nie zawsze potrafi wesprzeć zgłaszane pomysły. Szanuje opinie innych.","Wybór","Wybór",120.0,"","Z bazy opisów stanowisk","Z bazy opisów stanowisk","Z bazy opisów stanowisk","Z bazy opisów stanowisk","Wpis ręczny","Wpis ręczny","Z bazy opisów stanowisk","Wpis ręczny","Wpis ręczny","Wpis ręczny"]
["Praca zespołowa","Podejmuje własne inicjatywy w pracy zespołowej, proponuje nowe rozwiązania, sam podejmuje się zadań .","Wybór","Wybór",121.0,"","Z bazy opisów stanowisk","Z bazy opisów stanowisk","Z bazy opisów stanowisk","Z bazy opisów stanowisk","Wpis ręczny","Wpis ręczny","Z bazy opisów stanowisk","Wpis ręczny","Wpis ręczny","Wpis ręczny"]
["Praca zespołowa","Potrafi dobrze pracować w zespole przyjmując pewne specyficzne role, identyfikuje się z zespołem. Zna i rozumie korzyści płynące z pracy zespołowej. ","Wybór","Wybór",122.0,"","Z bazy opisów stanowisk","Z bazy opisów stanowisk","Z bazy opisów stanowisk","Z bazy opisów stanowisk","Wpis ręczny","Wpis ręczny","Z bazy opisów stanowisk","Wpis ręczny","Wpis ręczny","Wpis ręczny"]
["Praca zespołowa","Wyraża swoje zdanie i przekazuje informacje w sposób klarowny i zrozumiały dla innych.","Wybór","Wybór",123.0,"","Z bazy opisów stanowisk","Z bazy opisów stanowisk","Z bazy opisów stanowisk","Z bazy opisów stanowisk","Wpis ręczny","Wpis ręczny","Z bazy opisów stanowisk","Wpis ręczny","Wpis ręczny","Wpis ręczny"]
["Komunikatywność ","Budując własną argumentację opiera się na faktach. ","Wybór","Wybór",124.0,"","Z bazy opisów stanowisk","Z bazy opisów stanowisk","Z bazy opisów stanowisk","Z bazy opisów stanowisk","Wpis ręczny","Wpis ręczny","Z bazy opisów stanowisk","Wpis ręczny","Wpis ręczny","Wpis ręczny"]
["Komunikatywność ","Komunikowanie się z innymi przychodzi mu z łatwością, także w nowych okolicznościach. ","Wybór","Wybór",125.0,"","Z bazy opisów stanowisk","Z bazy opisów stanowisk","Z bazy opisów stanowisk","Z bazy opisów stanowisk","Wpis ręczny","Wpis ręczny","Z bazy opisów stanowisk","Wpis ręczny","Wpis ręczny","Wpis ręczny"]
["Komunikatywność ","Odpowiada na  e - maile, faksy i listy do niego skierowane.   ","Wybór","Wybór",126.0,"","Z bazy opisów stanowisk","Z bazy opisów stanowisk","Z bazy opisów stanowisk","Z bazy opisów stanowisk","Wpis ręczny","Wpis ręczny","Z bazy opisów stanowisk","Wpis ręczny","Wpis ręczny","Wpis ręczny"]
["Komunikatywność ","Wypowiada się w sposób swobodny, zrozumiały, jasny i logiczny.","Wybór","Wybór",127.0,"","Z bazy opisów stanowisk","Z bazy opisów stanowisk","Z bazy opisów stanowisk","Z bazy opisów stanowisk","Wpis ręczny","Wpis ręczny","Z bazy opisów stanowisk","Wpis ręczny","Wpis ręczny","Wpis ręczny"]
["Komunikatywność ","Dopytuje, kiedy nie jest pewien sensu wypowiedzi rozmówcy.","Wybór","Wybór",128.0,"","Z bazy opisów stanowisk","Z bazy opisów stanowisk","Z bazy opisów stanowisk","Z bazy opisów stanowisk","Wpis ręczny","Wpis ręczny","Z bazy opisów stanowisk","Wpis ręczny","Wpis ręczny","Wpis ręczny"]
["Komunikatywność ","Słucha aktywnie swojego rozmówcy. ","Wybór","Wybór",129.0,"","Z bazy opisów stanowisk","Z bazy opisów stanowisk","Z bazy opisów stanowisk","Z bazy opisów stanowisk","Wpis ręczny","Wpis ręczny","Z bazy opisów stanowisk","Wpis ręczny","Wpis ręczny","Wpis ręczny"]
["Komunikatywność ","Rozumie sens wypowiedzi rozmówcy.","Wybór","Wybór",130.0,"","Z bazy opisów stanowisk","Z bazy opisów stanowisk","Z bazy opisów stanowisk","Z bazy opisów stanowisk","Wpis ręczny","Wpis ręczny","Z bazy opisów stanowisk","Wpis ręczny","Wpis ręczny","Wpis ręczny"]
["Komunikatywność ","Upewnia się jak został zrozumiany przez odbiorcę . ","Wybór","Wybór",131.0,"","Z bazy opisów stanowisk","Z bazy opisów stanowisk","Z bazy opisów stanowisk","Z bazy opisów stanowisk","Wpis ręczny","Wpis ręczny","Z bazy opisów stanowisk","Wpis ręczny","Wpis ręczny","Wpis ręczny"]
["Samodzielność ","Kontroluje wykonywane przez siebie zadania.","Wybór","Wybór",132.0,"","Z bazy opisów stanowisk","Z bazy opisów stanowisk","Z bazy opisów stanowisk","Z bazy opisów stanowisk","Wpis ręczny","Wpis ręczny","Z bazy opisów stanowisk","Wpis ręczny","Wpis ręczny","Wpis ręczny"]
["Samodzielność ","Nie potrzebuje zewnętrznego nadzoru. ","Wybór","Wybór",133.0,"","Z bazy opisów stanowisk","Z bazy opisów stanowisk","Z bazy opisów stanowisk","Z bazy opisów stanowisk","Wpis ręczny","Wpis ręczny","Z bazy opisów stanowisk","Wpis ręczny","Wpis ręczny","Wpis ręczny"]
["Samodzielność ","Planuje swoją pracę w sposób niezależny.","Wybór","Wybór",134.0,"","Z bazy opisów stanowisk","Z bazy opisów stanowisk","Z bazy opisów stanowisk","Z bazy opisów stanowisk","Wpis ręczny","Wpis ręczny","Z bazy opisów stanowisk","Wpis ręczny","Wpis ręczny","Wpis ręczny"]
["Samodzielność ","Posiada wewnętrzną dyscyplinę.","Wybór","Wybór",135.0,"","Z bazy opisów stanowisk","Z bazy opisów stanowisk","Z bazy opisów stanowisk","Z bazy opisów stanowisk","Wpis ręczny","Wpis ręczny","Z bazy opisów stanowisk","Wpis ręczny","Wpis ręczny","Wpis ręczny"]
["Samodzielność ","Realizuje zadania bez zewnętrznego i bezpośredniego nadzoru. ","Wybór","Wybór",136.0,"","Z bazy opisów stanowisk","Z bazy opisów stanowisk","Z bazy opisów stanowisk","Z bazy opisów stanowisk","Wpis ręczny","Wpis ręczny","Z bazy opisów stanowisk","Wpis ręczny","Wpis ręczny","Wpis ręczny"]
["Kompetencje stanowiskowe",null,"samoocena","ocena",150.0,"","Z bazy opisów stanowisk","Z bazy opisów stanowisk","Z bazy opisów stanowisk","Z bazy opisów stanowisk","Wpis ręczny","Wpis ręczny","Z bazy opisów stanowisk","Wpis ręczny","Wpis ręczny","Wpis ręczny"]
["Kompetencja stanowiskowa 1",null,"Wybór","Wybór",151.0,"","Z bazy opisów stanowisk","Z bazy opisów stanowisk","Z bazy opisów stanowisk","Z bazy opisów stanowisk","Wpis ręczny","Wpis ręczny","Z bazy opisów stanowisk","Wpis ręczny","Wpis ręczny","Wpis ręczny"]
["Kompetencja stanowiskowa 1",null,"Wybór","Wybór",152.0,"","Z bazy opisów stanowisk","Z bazy opisów stanowisk","Z bazy opisów stanowisk","Z bazy opisów stanowisk","Wpis ręczny","Wpis ręczny","Z bazy opisów stanowisk","Wpis ręczny","Wpis ręczny","Wpis ręczny"]
["Kompetencja stanowiskowa 1",null,"Wybór","Wybór",153.0,"","Z bazy opisów stanowisk","Z bazy opisów stanowisk","Z bazy opisów stanowisk","Z bazy opisów stanowisk","Wpis ręczny","Wpis ręczny","Z bazy opisów stanowisk","Wpis ręczny","Wpis ręczny","Wpis ręczny"]
["Kompetencja stanowiskowa 1",null,"Wybór","Wybór",154.0,"","Z bazy opisów stanowisk","Z bazy opisów stanowisk","Z bazy opisów stanowisk","Z bazy opisów stanowisk","Wpis ręczny","Wpis ręczny","Z bazy opisów stanowisk","Wpis ręczny","Wpis ręczny","Wpis ręczny"]
["Kompetencja stanowiskowa 1",null,"Wybór","Wybór",155.0,"","Z bazy opisów stanowisk","Z bazy opisów stanowisk","Z bazy opisów stanowisk","Z bazy opisów stanowisk","Wpis ręczny","Wpis ręczny","Z bazy opisów stanowisk","Wpis ręczny","Wpis ręczny","Wpis ręczny"]
["Kompetencja stanowiskowa 1",null,"Wybór","Wybór",156.0,"","Z bazy opisów stanowisk","Z bazy opisów stanowisk","Z bazy opisów stanowisk","Z bazy opisów stanowisk","Wpis ręczny","Wpis ręczny","Z bazy opisów stanowisk","Wpis ręczny","Wpis ręczny","Wpis ręczny"]
["Kompetencja stanowiskowa 1",null,"Wybór","Wybór",157.0,"","Z bazy opisów stanowisk","Z bazy opisów stanowisk","Z bazy opisów stanowisk","Z bazy opisów stanowisk","Wpis ręczny","Wpis ręczny","Z bazy opisów stanowisk","Wpis ręczny","Wpis ręczny","Wpis ręczny"]
["Kompetencja stanowiskowa 1",null,"Wybór","Wybór",158.0,"","Z bazy opisów stanowisk","Z bazy opisów stanowisk","Z bazy opisów stanowisk","Z bazy opisów stanowisk","Wpis ręczny","Wpis ręczny","Z bazy opisów stanowisk","Wpis ręczny","Wpis ręczny","Wpis ręczny"]
["Kompetencja stanowiskowa 1",null,"Wybór","Wybór",159.0,"","Z bazy opisów stanowisk","Z bazy opisów stanowisk","Z bazy opisów stanowisk","Z bazy opisów stanowisk","Wpis ręczny","Wpis ręczny","Z bazy opisów stanowisk","Wpis ręczny","Wpis ręczny","Wpis ręczny"]
["Kompetencja stanowiskowa 2",null,"Wybór","Wybór",160.0,"","Z bazy opisów stanowisk","Z bazy opisów stanowisk","Z bazy opisów stanowisk","Z bazy opisów stanowisk","Wpis ręczny","Wpis ręczny","Z bazy opisów stanowisk","Wpis ręczny","Wpis ręczny","Wpis ręczny"]
["Kompetencja stanowiskowa 2",null,"Wybór","Wybór",161.0,"","Z bazy opisów stanowisk","Z bazy opisów stanowisk","Z bazy opisów stanowisk","Z bazy opisów stanowisk","Wpis ręczny","Wpis ręczny","Z bazy opisów stanowisk","Wpis ręczny","Wpis ręczny","Wpis ręczny"]
["Kompetencja stanowiskowa 2",null,"Wybór","Wybór",162.0,"","Z bazy opisów stanowisk","Z bazy opisów stanowisk","Z bazy opisów stanowisk","Z bazy opisów stanowisk","Wpis ręczny","Wpis ręczny","Z bazy opisów stanowisk","Wpis ręczny","Wpis ręczny","Wpis ręczny"]
["Kompetencja stanowiskowa 2",null,"Wybór","Wybór",163.0,"","Z bazy opisów stanowisk","Z bazy opisów stanowisk","Z bazy opisów stanowisk","Z bazy opisów stanowisk","Wpis ręczny","Wpis ręczny","Z bazy opisów stanowisk","Wpis ręczny","Wpis ręczny","Wpis ręczny"]
["Kompetencja stanowiskowa 2",null,"Wybór","Wybór",164.0,"","Z bazy opisów stanowisk","Z bazy opisów stanowisk","Z bazy opisów stanowisk","Z bazy opisów stanowisk","Wpis ręczny","Wpis ręczny","Z bazy opisów stanowisk","Wpis ręczny","Wpis ręczny","Wpis ręczny"]
["Kompetencja stanowiskowa 2",null,"Wybór","Wybór",165.0,"","Z bazy opisów stanowisk","Z bazy opisów stanowisk","Z bazy opisów stanowisk","Z bazy opisów stanowisk","Wpis ręczny","Wpis ręczny","Z bazy opisów stanowisk","Wpis ręczny","Wpis ręczny","Wpis ręczny"]
["Kompetencja stanowiskowa 2",null,"Wybór","Wybór",166.0,"","Z bazy opisów stanowisk","Z bazy opisów stanowisk","Z bazy opisów stanowisk","Z bazy opisów stanowisk","Wpis ręczny","Wpis ręczny","Z bazy opisów stanowisk","Wpis ręczny","Wpis ręczny","Wpis ręczny"]
["Kompetencja stanowiskowa 2",null,"Wybór","Wybór",167.0,"","Z bazy opisów stanowisk","Z bazy opisów stanowisk","Z bazy opisów stanowisk","Z bazy opisów stanowisk","Wpis ręczny","Wpis ręczny","Z bazy opisów stanowisk","Wpis ręczny","Wpis ręczny","Wpis ręczny"]
["Kompetencja stanowiskowa 2",null,"Wybór","Wybór",168.0,"","Z bazy opisów stanowisk","Z bazy opisów stanowisk","Z bazy opisów stanowisk","Z bazy opisów stanowisk","Wpis ręczny","Wpis ręczny","Z bazy opisów stanowisk","Wpis ręczny","Wpis ręczny","Wpis ręczny"]
["Kompetencja stanowiskowa 3",null,"Wybór","Wybór",169.0,"","Z bazy opisów stanowisk","Z bazy opisów stanowisk","Z bazy opisów stanowisk","Z bazy opisów stanowisk","Wpis ręczny","Wpis ręczny","Z bazy opisów stanowisk","Wpis ręczny","Wpis ręczny","Wpis ręczny"]
["Kompetencja stanowiskowa 3",null,"Wybór","Wybór",170.0,"","Z bazy opisów stanowisk","Z bazy opisów stanowisk","Z bazy opisów stanowisk","Z bazy opisów stanowisk","Wpis ręczny","Wpis ręczny","Z bazy opisów stanowisk","Wpis ręczny","Wpis ręczny","Wpis ręczny"]
["Kompetencja stanowiskowa 3",null,"Wybór","Wybór",171.0,"","Z bazy opisów stanowisk","Z bazy opisów stanowisk","Z bazy opisów stanowisk","Z bazy opisów stanowisk","Wpis ręczny","Wpis ręczny","Z bazy opisów stanowisk","Wpis ręczny","Wpis ręczny","Wpis ręczny"]
["Kompetencja stanowiskowa 3",null,"Wybór","Wybór",172.0,"","Z bazy opisów stanowisk","Z bazy opisów stanowisk","Z bazy opisów stanowisk","Z bazy opisów stanowisk","Wpis ręczny","Wpis ręczny","Z bazy opisów stanowisk","Wpis ręczny","Wpis ręczny","Wpis ręczny"]
["Kompetencja stanowiskowa 3",null,"Wybór","Wybór",173.0,"","Z bazy opisów stanowisk","Z bazy opisów stanowisk","Z bazy opisów stanowisk","Z bazy opisów stanowisk","Wpis ręczny","Wpis ręczny","Z bazy opisów stanowisk","Wpis ręczny","Wpis ręczny","Wpis ręczny"]
["Kompetencja stanowiskowa 3",null,"Wybór","Wybór",174.0,"","Z bazy opisów stanowisk","Z bazy opisów stanowisk","Z bazy opisów stanowisk","Z bazy opisów stanowisk","Wpis ręczny","Wpis ręczny","Z bazy opisów stanowisk","Wpis ręczny","Wpis ręczny","Wpis ręczny"]
["Kompetencja stanowiskowa 3",null,"Wybór","Wybór",175.0,"","Z bazy opisów stanowisk","Z bazy opisów stanowisk","Z bazy opisów stanowisk","Z bazy opisów stanowisk","Wpis ręczny","Wpis ręczny","Z bazy opisów stanowisk","Wpis ręczny","Wpis ręczny","Wpis ręczny"]
["Kompetencja stanowiskowa 3",null,"Wybór","Wybór",176.0,"","Z bazy opisów stanowisk","Z bazy opisów stanowisk","Z bazy opisów stanowisk","Z bazy opisów stanowisk","Wpis ręczny","Wpis ręczny","Z bazy opisów stanowisk","Wpis ręczny","Wpis ręczny","Wpis ręczny"]
["Kompetencja stanowiskowa 3",null,"Wybór","Wybór",177.0,"","Z bazy opisów stanowisk","Z bazy opisów stanowisk","Z bazy opisów stanowisk","Z bazy opisów stanowisk","Wpis ręczny","Wpis ręczny","Z bazy opisów stanowisk","Wpis ręczny","Wpis ręczny","Wpis ręczny"]
["KIEROWNICZE",null,"samoocena","ocena",178.0,"","Z bazy opisów stanowisk","Z bazy opisów stanowisk","Z bazy opisów stanowisk","Z bazy opisów stanowisk","Wpis ręczny","Wpis ręczny","Z bazy opisów stanowisk","Wpis ręczny","Wpis ręczny","Wpis ręczny"]
["Kierowanie zespołem","Informuje podwładnych o przebiegu wykonywanych zadań, szczególnie w sytuacji,gdy działania wymagają korekty, zmian czy będą miały inny wpływ na rytm pracy poszczególnych osób. ","Wybór","Wybór",179.0,"","Z bazy opisów stanowisk","Z bazy opisów stanowisk","Z bazy opisów stanowisk","Z bazy opisów stanowisk","Wpis ręczny","Wpis ręczny","Z bazy opisów stanowisk","Wpis ręczny","Wpis ręczny","Wpis ręczny"]
["Kierowanie zespołem","Na bieżąco monitoruje i ocenia wykonanie zadań pod względem czasu oraz poprawności ich realizacji i koryguje działania, gdy jest taka potrzeba lub przerywa, gdy problem wymaga konsultacji czy zmian. ","Wybór","Wybór",180.0,"","Z bazy opisów stanowisk","Z bazy opisów stanowisk","Z bazy opisów stanowisk","Z bazy opisów stanowisk","Wpis ręczny","Wpis ręczny","Z bazy opisów stanowisk","Wpis ręczny","Wpis ręczny","Wpis ręczny"]
["Kierowanie zespołem","W przypadku identyfikacji konfliktu mającego znamiona wykroczenia (mobbing, szantaż, dyskryminacja) reaguje zgodnie z przyjętymi procedurami. ","Wybór","Wybór",181.0,"","Z bazy opisów stanowisk","Z bazy opisów stanowisk","Z bazy opisów stanowisk","Z bazy opisów stanowisk","Wpis ręczny","Wpis ręczny","Z bazy opisów stanowisk","Wpis ręczny","Wpis ręczny","Wpis ręczny"]
["Kierowanie zespołem","Deleguje zadania i  konsekwentnie nadzoruje ich wykonywanie.","Wybór","Wybór",182.0,"","Z bazy opisów stanowisk","Z bazy opisów stanowisk","Z bazy opisów stanowisk","Z bazy opisów stanowisk","Wpis ręczny","Wpis ręczny","Z bazy opisów stanowisk","Wpis ręczny","Wpis ręczny","Wpis ręczny"]
["Kierowanie zespołem","W przypadku zauważenia nieporozumień między współpracownikami lub sytuacji, które mogą do tego prowadzić, reaguje. ","Wybór","Wybór",183.0,"","Z bazy opisów stanowisk","Z bazy opisów stanowisk","Z bazy opisów stanowisk","Z bazy opisów stanowisk","Wpis ręczny","Wpis ręczny","Z bazy opisów stanowisk","Wpis ręczny","Wpis ręczny","Wpis ręczny"]
["Kierowanie zespołem","Przyjmuje odpowiedzialność za własne decyzje oraz wyniki pracy zespołu , zarówno w sytuacji sukcesów, jak i porażek. ","Wybór","Wybór",184.0,"","Z bazy opisów stanowisk","Z bazy opisów stanowisk","Z bazy opisów stanowisk","Z bazy opisów stanowisk","Wpis ręczny","Wpis ręczny","Z bazy opisów stanowisk","Wpis ręczny","Wpis ręczny","Wpis ręczny"]
["Kierowanie zespołem","Chwali i docenia indywidualne wysiłki pracowników oraz osiągnięte przez nich rezultaty – oznacza to, że mówi o ich rozwiązaniach na forum.","Wybór","Wybór",185.0,"","Z bazy opisów stanowisk","Z bazy opisów stanowisk","Z bazy opisów stanowisk","Z bazy opisów stanowisk","Wpis ręczny","Wpis ręczny","Z bazy opisów stanowisk","Wpis ręczny","Wpis ręczny","Wpis ręczny"]
["Kierowanie zespołem","Zadania rozdziela między pracowników zgodnie z ich kompetencjami (wiedzą, umiejętnościami, doświadczeniem i uprawnieniami).","Wybór","Wybór",186.0,"","Z bazy opisów stanowisk","Z bazy opisów stanowisk","Z bazy opisów stanowisk","Z bazy opisów stanowisk","Wpis ręczny","Wpis ręczny","Z bazy opisów stanowisk","Wpis ręczny","Wpis ręczny","Wpis ręczny"]
["Kierowanie zespołem","Przyznaje się do błędów popełnionych przez podwładnych, umie o nich powiedzieć i je omówić zarówno z podwładnymi, jak i poza ich gronem, analizuje błędy i przedstawia wyciągnięte wnioski.","Wybór","Wybór",187.0,"","Z bazy opisów stanowisk","Z bazy opisów stanowisk","Z bazy opisów stanowisk","Z bazy opisów stanowisk","Wpis ręczny","Wpis ręczny","Z bazy opisów stanowisk","Wpis ręczny","Wpis ręczny","Wpis ręczny"]
["Kierowanie zespołem","Zapewnia zespołowi niezbędne zasoby (narzędzia, materiały, informacje, sprzęt) potrzebne do realizacji zadań (dzięki temu nie wprowadza niepotrzebnych zakłóceń  i opóźnień). ","Wybór","Wybór",188.0,"","Z bazy opisów stanowisk","Z bazy opisów stanowisk","Z bazy opisów stanowisk","Z bazy opisów stanowisk","Wpis ręczny","Wpis ręczny","Z bazy opisów stanowisk","Wpis ręczny","Wpis ręczny","Wpis ręczny"]
["3. WIEDZA MERYTORYCZNA",null,null,null,189.0,"","Z bazy opisów stanowisk","Z bazy opisów stanowisk","Z bazy opisów stanowisk","Z bazy opisów stanowisk","Wpis ręczny","Wpis ręczny","Z bazy opisów stanowisk","Wpis ręczny","Wpis ręczny","Wpis ręczny"]
["Wiedza merytoryczna 1",null,null,"Wybór",190.0,"","Z bazy opisów stanowisk","Z bazy opisów stanowisk","Z bazy opisów stanowisk","Z bazy opisów stanowisk","Wpis ręczny","Wpis ręczny","Z bazy opisów stanowisk","Wpis ręczny","Wpis ręczny","Wpis ręczny"]
["Wiedza merytoryczna 2",null,null,"Wybór",191.0,"","Z bazy opisów stanowisk","Z bazy opisów stanowisk","Z bazy opisów stanowisk","Z bazy opisów stanowisk","Wpis ręczny","Wpis ręczny","Z bazy opisów stanowisk","Wpis ręczny","Wpis ręczny","Wpis ręczny"]
["Wiedza merytoryczna 3",null,null,"Wybór",192.0,"","Z bazy opisów stanowisk","Z bazy opisów stanowisk","Z bazy opisów stanowisk","Z bazy opisów stanowisk","Wpis ręczny","Wpis ręczny","Z bazy opisów stanowisk","Wpis ręczny","Wpis ręczny","Wpis ręczny"]
["Wiedza merytoryczna 4",null,null,"Wybór",193.0,"","Z bazy opisów stanowisk","Z bazy opisów stanowisk","Z bazy opisów stanowisk","Z bazy opisów stanowisk","Wpis ręczny","Wpis ręczny","Z bazy opisów stanowisk","Wpis ręczny","Wpis ręczny","Wpis ręczny"]
["Wiedza merytoryczna 5",null,null,"Wybór",194.0,"","Z bazy opisów stanowisk","Z bazy opisów stanowisk","Z bazy opisów stanowisk","Z bazy opisów stanowisk","Wpis ręczny","Wpis ręczny","Z bazy opisów stanowisk","Wpis ręczny","Wpis ręczny","Wpis ręczny"]
["4. PROGRAMY KOMPUTEROWE",null,null,null,195.0,"","Z bazy opisów stanowisk","Z bazy opisów stanowisk","Z bazy opisów stanowisk","Z bazy opisów stanowisk","Wpis ręczny","Wpis ręczny","Z bazy opisów stanowisk","Wpis ręczny","Wpis ręczny","Wpis ręczny"]
["Programy komputerowe 1",null,null,"Wybór",196.0,"","Z bazy opisów stanowisk","Z bazy opisów stanowisk","Z bazy opisów stanowisk","Z bazy opisów stanowisk","Wpis ręczny","Wpis ręczny","Z bazy opisów stanowisk","Wpis ręczny","Wpis ręczny","Wpis ręczny"]
["Programy komputerowe 2",null,null,"Wybór",197.0,"","Z bazy opisów stanowisk","Z bazy opisów stanowisk","Z bazy opisów stanowisk","Z bazy opisów stanowisk","Wpis ręczny","Wpis ręczny","Z bazy opisów stanowisk","Wpis ręczny","Wpis ręczny","Wpis ręczny"]
["Programy komputerowe 3",null,null,"Wybór",198.0,"","Z bazy opisów stanowisk","Z bazy opisów stanowisk","Z bazy opisów stanowisk","Z bazy opisów stanowisk","Wpis ręczny","Wpis ręczny","Z bazy opisów stanowisk","Wpis ręczny","Wpis ręczny","Wpis ręczny"]
["Programy komputerowe 4",null,null,"Wybór",199.0,"","Z bazy opisów stanowisk","Z bazy opisów stanowisk","Z bazy opisów stanowisk","Z bazy opisów stanowisk","Wpis ręczny","Wpis ręczny","Z bazy opisów stanowisk","Wpis ręczny","Wpis ręczny","Wpis ręczny"]
["Programy komputerowe 5",null,null,"Wybór",200.0,"","Z bazy opisów stanowisk","Z bazy opisów stanowisk","Z bazy opisów stanowisk","Z bazy opisów stanowisk","Wpis ręczny","Wpis ręczny","Z bazy opisów stanowisk","Wpis ręczny","Wpis ręczny","Wpis ręczny"]
["5. JĘZYK OBCY",null,null,null,201.0,"","Z bazy opisów stanowisk","Z bazy opisów stanowisk","Z bazy opisów stanowisk","Z bazy opisów stanowisk","Wpis ręczny","Wpis ręczny","Z bazy opisów stanowisk","Wpis ręczny","Wpis ręczny","Wpis ręczny"]
["Nazwa i poziom znajomości",null,null,"Wybór",202.0,"","Z bazy opisów stanowisk","Z bazy opisów stanowisk","Z bazy opisów stanowisk","Z bazy opisów stanowisk","Wpis ręczny","Wpis ręczny","Z bazy opisów stanowisk","Wpis ręczny","Wpis ręczny","Wpis ręczny"]
["6. OCENA ROCZNA PRACOWNIKA",null,null,null,203.0,"","Z bazy opisów stanowisk","Z bazy opisów stanowisk","Z bazy opisów stanowisk","Z bazy opisów stanowisk","Wpis ręczny","Wpis ręczny","Z bazy opisów stanowisk","Wpis ręczny","Wpis ręczny","Wpis ręczny"]
["6.1 Ocena zadań",null,null,"Ocena",204.0,"","Z bazy opisów stanowisk","Z bazy opisów stanowisk","Z bazy opisów stanowisk","Z bazy opisów stanowisk","Wpis ręczny","Wpis ręczny","Z bazy opisów stanowisk","Wpis ręczny","Wpis ręczny","Wpis ręczny"]
["Ocena roczna zadań ",null,null,{"$f":"'a techn 1'!K8","v":0},209.0,"","Z bazy opisów stanowisk","Z bazy opisów stanowisk","Z bazy opisów stanowisk","Z bazy opisów stanowisk","Wpis ręczny","Wpis ręczny","Z bazy opisów stanowisk","Wpis ręczny","Wpis ręczny","Wpis ręczny"]
["Komentarz",null,null,null,210.0,"","Z bazy opisów stanowisk","Z bazy opisów stanowisk","Z bazy opisów stanowisk","Z bazy opisów stanowisk","Wpis ręczny","Wpis ręczny","Z bazy opisów stanowisk","Wpis ręczny","Wpis ręczny","Wpis ręczny"]
["6.2 Ocena podsumowanie",null,null,"Ocena",211.0,"","Z bazy opisów stanowisk","Z bazy opisów stanowisk","Z bazy opisów stanowisk","Z bazy opisów stanowisk","Wpis ręczny","Wpis ręczny","Z bazy opisów stanowisk","Wpis ręczny","Wpis ręczny","Wpis ręczny"]
["Ocena realizacji zadań",null,null,{"$f":"D155","v":0},212.0,"","Z bazy opisów stanowisk","Z bazy opisów stanowisk","Z bazy opisów stanowisk","Z bazy opisów stanowisk","Wpis ręczny","Wpis ręczny","Z bazy opisów stanowisk","Wpis ręczny","Wpis ręczny","Wpis ręczny"]
["Ocena kompetencji",null,null,{"$f":"'a techn 1'!F109","v":0},213.0,"","Z bazy opisów stanowisk","Z bazy opisów stanowisk","Z bazy opisów stanowisk","Z bazy opisów stanowisk","Wpis ręczny","Wpis ręczny","Z bazy opisów stanowisk","Wpis ręczny","Wpis ręczny","Wpis ręczny"]
["Ocena ważona",null,null,{"$f":"'a techn 1'!F111","v":0},214.0,"","Z bazy opisów stanowisk","Z bazy opisów stanowisk","Z bazy opisów stanowisk","Z bazy opisów stanowisk","Wpis ręczny","Wpis ręczny","Z bazy opisów stanowisk","Wpis ręczny","Wpis ręczny","Wpis ręczny"]
["Ocena roczna",{"$f":"'a techn 1'!A118","v":"Brak oceny"},null,null,215.0,"","Z bazy opisów stanowisk","Z bazy opisów stanowisk","Z bazy opisów stanowisk","Z bazy opisów stanowisk","Wpis ręczny","Wpis ręczny","Z bazy opisów stanowisk","Wpis ręczny","Wpis ręczny","Wpis ręczny"]
["7. OCENA WARUNKÓW PRACY",null,null,null,216.0,"","Z bazy opisów stanowisk","Z bazy opisów stanowisk","Z bazy opisów stanowisk","Z bazy opisów stanowisk","Wpis ręczny","Wpis ręczny","Z bazy opisów stanowisk","Wpis ręczny","Wpis ręczny","Wpis ręczny"]
["Na jakie trudności napotykasz w trakcie wykonywania codziennej pracy (sprzęt, organizacja pracy)? ",null,null,null,217.0,"","Z bazy opisów stanowisk","Z bazy opisów stanowisk","Z bazy opisów stanowisk","Z bazy opisów stanowisk","Wpis ręczny","Wpis ręczny","Z bazy opisów stanowisk","Wpis ręczny","Wpis ręczny","Wpis ręczny"]
["Jakie zmiany na stanowisku pracy wpłynęłyby korzystnie na realizację Twoich zadań zawodowych?",null,null,null,218.0,"","Z bazy opisów stanowisk","Z bazy opisów stanowisk","Z bazy opisów stanowisk","Z bazy opisów stanowisk","Wpis ręczny","Wpis ręczny","Z bazy opisów stanowisk","Wpis ręczny","Wpis ręczny","Wpis ręczny"]
["Co usprawniłbyś w funkcjonowaniu swojego działu, Uniwersytetu?",null,null,null,219.0,"","Z bazy opisów stanowisk","Z bazy opisów stanowisk","Z bazy opisów stanowisk","Z bazy opisów stanowisk","Wpis ręczny","Wpis ręczny","Z bazy opisów stanowisk","Wpis ręczny","Wpis ręczny","Wpis ręczny"]
["Jakie są Twoje mocne strony? W czym czujesz się najbardziej kompetentny?",null,null,null,220.0,"","Z bazy opisów stanowisk","Z bazy opisów stanowisk","Z bazy opisów stanowisk","Z bazy opisów stanowisk","Wpis ręczny","Wpis ręczny","Z bazy opisów stanowisk","Wpis ręczny","Wpis ręczny","Wpis ręczny"]
["Jakie były Twoje największe osiągnięcia/sukcesy zawodowe?",null,null,null,221.0,"","Z bazy opisów stanowisk","Z bazy opisów stanowisk","Z bazy opisów stanowisk","Z bazy opisów stanowisk","Wpis ręczny","Wpis ręczny","Z bazy opisów stanowisk","Wpis ręczny","Wpis ręczny","Wpis ręczny"]
["Jakie są Twoje obszary do poprawy? Jak chciałbyś je wzmocnić?",null,null,null,222.0,"","Z bazy opisów stanowisk","Z bazy opisów stanowisk","Z bazy opisów stanowisk","Z bazy opisów stanowisk","Wpis ręczny","Wpis ręczny","Z bazy opisów stanowisk","Wpis ręczny","Wpis ręczny","Wpis ręczny"]
["Jakiego rodzaju szkolenia czy inne formy doskonalenia zawodowego, ułatwiłyby Ci wykonywanie zadań zawodowych?",null,null,null,223.0,"","Z bazy opisów stanowisk","Z bazy opisów stanowisk","Z bazy opisów stanowisk","Z bazy opisów stanowisk","Wpis ręczny","Wpis ręczny","Z bazy opisów stanowisk","Wpis ręczny","Wpis ręczny","Wpis ręczny"]
["Jakie widziałbyś kierunki swojego rozwoju zawodowego firmie? Jakie zadania czy stanowisko chciałbyś objąć w przyszłości?",null,null,null,224.0,"","Z bazy opisów stanowisk","Z bazy opisów stanowisk","Z bazy opisów stanowisk","Z bazy opisów stanowisk","Wpis ręczny","Wpis ręczny","Z bazy opisów stanowisk","Wpis ręczny","Wpis ręczny","Wpis ręczny"]
["Jakie masz oczekiwania w stosunku do swojego bezpośredniego Przełożonego, które ułatwiłyby waszą współpracę i realizację zadań zawodowych?",null,null,null,225.0,"","Z bazy opisów stanowisk","Z bazy opisów stanowisk","Z bazy opisów stanowisk","Z bazy opisów stanowisk","Wpis ręczny","Wpis ręczny","Z bazy opisów stanowisk","Wpis ręczny","Wpis ręczny","Wpis ręczny"]
["Komentarz oceniającego:",null,null,null,226.0,"","Z bazy opisów stanowisk","Z bazy opisów stanowisk","Z bazy opisów stanowisk","Z bazy opisów stanowisk","Wpis ręczny","Wpis ręczny","Z bazy opisów stanowisk","Wpis ręczny","Wpis ręczny","Wpis ręczny"]
["8. USTALENIA ROZWOJOWE",null,null,null,227.0,"","Z bazy opisów stanowisk","Z bazy opisów stanowisk","Z bazy opisów stanowisk","Z bazy opisów stanowisk","Wpis ręczny","Wpis ręczny","Z bazy opisów stanowisk","Wpis ręczny","Wpis ręczny","Wpis ręczny"]
["Rozwój",null,null,null,228.0,"","Z bazy opisów stanowisk","Z bazy opisów stanowisk","Z bazy opisów stanowisk","Z bazy opisów stanowisk","Wpis ręczny","Wpis ręczny","Z bazy opisów stanowisk","Wpis ręczny","Wpis ręczny","Wpis ręczny"]
["Szkolenia",null,null,null,229.0,"","Z bazy opisów stanowisk","Z bazy opisów stanowisk","Z bazy opisów stanowisk","Z bazy opisów stanowisk","Wpis ręczny","Wpis ręczny","Z bazy opisów stanowisk","Wpis ręczny","Wpis ręczny","Wpis ręczny"]
["Uwagi",null,null,null,230.0,"","Z bazy opisów stanowisk","Z bazy opisów stanowisk","Z bazy opisów stanowisk","Z bazy opisów stanowisk","Wpis ręczny","Wpis ręczny","Z bazy opisów stanowisk","Wpis ręczny","Wpis ręczny","Wpis ręczny"]
["9. POTWIERDZENIA",null,null,null,231.0,"","Z bazy opisów stanowisk","Z bazy opisów stanowisk","Z bazy opisów stanowisk","Z bazy opisów stanowisk","Wpis ręczny","Wpis ręczny","Z bazy opisów stanowisk","Wpis ręczny","Wpis ręczny","Wpis ręczny"]
["Podpis oceniającego",null,null,null,232.0,"","Z bazy opisów stanowisk","Z bazy opisów stanowisk","Z bazy opisów stanowisk","Z bazy opisów stanowisk","Wpis ręczny","Wpis ręczny","Z bazy opisów stanowisk","Wpis ręczny","Wpis ręczny","Wpis ręczny"]
["Podpis ocenianego",null,null,null,233.0,"","Z bazy opisów stanowisk","Z bazy opisów stanowisk","Z bazy opisów stanowisk","Z bazy opisów stanowisk","Wpis ręczny","Wpis ręczny","Z bazy opisów stanowisk","Wpis ręczny","Wpis ręczny","Wpis ręczny"]
["Podpis przełożonego wyższego szczebla",null,null,null,234.0,"","Z bazy opisów stanowisk","Z bazy opisów stanowisk","Z bazy opisów stanowisk","Z bazy opisów stanowisk","Wpis ręczny","Wpis ręczny","Z bazy opisów stanowisk","Wpis ręczny","Wpis ręczny","Wpis ręczny"]

{"sheet":"Skale oceny","index":1,"n_rows":44,"n_cols":5,"rows_kept":44,"cut":false,"hidden":false,"merged":[[1,1,1,4],[8,1,8,4],[15,1,15,4],[22,1,22,4],[28,1,28,3],[34,1,34,3],[40,1,40,2]]}
[]
[null,"Skala oceny łącznej"]
[null,"Lp.","Ocena pracownika","Opis pracownika","Wartość oceny"]
[null,1.0,"Poniżej oczekiwań","Pracownik ewidentnie nieradzący sobie na danym stanowisku – konsekwencja bardzo duży nakład czasu i środków na zmianę sytuacji lub powierzenie innych zadań","W ≤ 1,90"]
[null,2.0,"Spełniający częściowo oczekiwania","Pracownik wymagający wsparcia w wybranych sytuacjach (zwiększona kontrola, szkolenia inne) rokujący na poprawę sytuacji.","1,90 < W  ≤ 2,10"]
[null,3.0,"Zgodnie z oczekiwaniami","Pracownik radzący sobie samodzielnie na stanowisku pracy.","2,10 < W  ≤ 2,50"]
[null,4.0,"Powyżej oczekiwań","Pracownik wyróżniający się swoja postawą i poziomem realizacji zadań, co może być przesłanką w przyszłości do powierzania bardziej złożonych zadań, awansu, nagrody","2,50 < W  ≤  3,00"]
[]
[null,"skala oceny zadań - kompletność"]
[null,"Lp.","Ocena kryteriów","Ocena","Wartość"]
[null,null,null,"Wybór"]
[null,1.0,"Poniżej ustaleń","A",1.0]
[null,2.0,"Zgodnie z ustaleniami","B",2.0]
[null,3.0,"Powyżej ustaleń","C",3.0]
[]
[null,"skala oceny zadań - terminowość"]
[null,"Lp.","Ocena kryteriów","Ocena","Wartość"]
[null,null,null,"Wybór"]
[null,1.0,"Realizacja po terminie ","A",1.0]
[null,2.0,"Realizacja w terminie","B",2.0]
[null,3.0,"Realizacja przed terminem","C",3.0]
[]
[null,"skala oceny zachowań "]
[null,"Lp.","Poziom zachowania","Ocena","Wartość"]
[null,null,null,"Wybór"]
[null,1.0,"Nie spełnia oczekiwań","A",1.0]
[null,2.0,"Spełnia oczekiwania ","C",3.0]
[]
[null,"Wagi - ocena pracownika"]
[]
[null,null,"Zadania ",0.6]
[null,null,"Kompetencje samodzielne",0.4]
[null,null,"Kompetencje kierowników"]
[]
[null,"Wagi - ocena kierownika"]
[null,null,"Zadania ",0.6]
[null,null,"Kompetencje:",0.4]
[null,null,"Kompetencje samodzielne",0.5]
[null,null,"Kompetencje kierowników",0.5]
[]
[null,"Ocena kwalifikacji"]
[null,1.0,"Wybór"]
[null,2.0,"Wymaga doskonalenia  "]
[null,3.0,"Spełnia oczekiwania "]

{"sheet":"a techn 1","index":2,"n_rows":119,"n_cols":11,"rows_kept":119,"cut":false,"hidden":true,"merged":[]}
[{"$nulls":6},"ŁĄCZNA OCENA KOMPL I TERM"]
[]
[{"$nulls":7},"oceny","liczba ","wynik","jeżeli bład"]
[{"$nulls":6},"rok",{"$f":"B19+B31","v":0},0,{"$f":"H4/I4","v":"#DIV/0!"},{"$f":"IFERROR(J4,0)","v":0}]
[{"$nulls":10},""]
[{"$nulls":10},""]
[{"$nulls":10},""]
[{"$nulls":6},"rok",{"$f":"H4","v":0},0,{"$f":"H8/I8","v":"#DIV/0!"},0]
[]
[]
[null,"ROK"]
[null,"kompletność","liczba","0cena rok","JEŻELI BŁAD"]
[null,{"$f":"IF('ARKUSZ OCENY'!D40=\"A\",1,IF('ARKUSZ OCENY'!D40=\"B\",2,IF('ARKUSZ OCENY'!D40=\"C\",3,IF('ARKUSZ OCENY'!D40=\"WYBÓR\",0))))","v":0},{"$f":"IF(B13=1,1,IF(B13=2,1,IF(B13=3,1,IF(B13=0,0))))","v":0}]
[null,{"$f":"IF('ARKUSZ OCENY'!D46=\"A\",1,IF('ARKUSZ OCENY'!D46=\"B\",2,IF('ARKUSZ OCENY'!D46=\"C\",3,IF('ARKUSZ OCENY'!D46=\"WYBÓR\",0))))","v":0},0]
[null,{"$f":"IF('ARKUSZ OCENY'!D52=\"A\",1,IF('ARKUSZ OCENY'!D52=\"B\",2,IF('ARKUSZ OCENY'!D52=\"C\",3,IF('ARKUSZ OCENY'!D52=\"WYBÓR\",0))))","v":0},0]
[null,{"$f":"IF('ARKUSZ OCENY'!D58=\"A\",1,IF('ARKUSZ OCENY'!D58=\"B\",2,IF('ARKUSZ OCENY'!D58=\"C\",3,IF('ARKUSZ OCENY'!D58=\"WYBÓR\",0))))","v":0},0]
[null,{"$f":"IF('ARKUSZ OCENY'!D64=\"A\",1,IF('ARKUSZ OCENY'!D64=\"B\",2,IF('ARKUSZ OCENY'!D64=\"C\",3,IF('ARKUSZ OCENY'!D64=\"WYBÓR\",0))))","v":0},0]
[null,{"$f":"IF('ARKUSZ OCENY'!D70=\"A\",1,IF('ARKUSZ OCENY'!D70=\"B\",2,IF('ARKUSZ OCENY'!D70=\"C\",3,IF('ARKUSZ OCENY'!D70=\"WYBÓR\",0))))","v":0},0]
[null,{"$f":"SUM(B13:B18)","v":0},0,{"$f":"B19/C19","v":"#DIV/0!"},{"$f":"IFERROR(D19,0)","v":0}]
["SUMA W ROKU",{"$f":"B19","v":0},0,"#DIV/0!",0]
[]
[]
[]
[null,"Terminowość","liczba","0cena rok","JEŻELI BŁAD"]
[null,{"$f":"IF('ARKUSZ OCENY'!D41=\"A\",1,IF('ARKUSZ OCENY'!D41=\"B\",2,IF('ARKUSZ OCENY'!D41=\"C\",3,IF('ARKUSZ OCENY'!D41=\"WYBÓR\",0))))","v":0},{"$f":"IF(B25=1,1,IF(B25=2,1,IF(B25=3,1,IF(B25=0,0))))","v":0}]
[null,{"$f":"IF('ARKUSZ OCENY'!D47=\"A\",1,IF('ARKUSZ OCENY'!D47=\"B\",2,IF('ARKUSZ OCENY'!D47=\"C\",3,IF('ARKUSZ OCENY'!D47=\"WYBÓR\",0))))","v":0},0]
[null,{"$f":"IF('ARKUSZ OCENY'!D53=\"A\",1,IF('ARKUSZ OCENY'!D53=\"B\",2,IF('ARKUSZ OCENY'!D53=\"C\",3,IF('ARKUSZ OCENY'!D53=\"WYBÓR\",0))))","v":0},0]
[null,{"$f":"IF('ARKUSZ OCENY'!D59=\"A\",1,IF('ARKUSZ OCENY'!D59=\"B\",2,IF('ARKUSZ OCENY'!D59=\"C\",3,IF('ARKUSZ OCENY'!D59=\"WYBÓR\",0))))","v":0},0]
[null,{"$f":"IF('ARKUSZ OCENY'!D65=\"A\",1,IF('ARKUSZ OCENY'!D65=\"B\",2,IF('ARKUSZ OCENY'!D65=\"C\",3,IF('ARKUSZ OCENY'!D65=\"WYBÓR\",0))))","v":0},0]
[null,{"$f":"IF('ARKUSZ OCENY'!D71=\"A\",1,IF('ARKUSZ OCENY'!D71=\"B\",2,IF('ARKUSZ OCENY'!D71=\"C\",3,IF('ARKUSZ OCENY'!D71=\"WYBÓR\",0))))","v":0},0]
[null,{"$f":"SUM(B25:B30)","v":0},0,{"$f":"B31/C31","v":"#DIV/0!"},{"$f":"IFERROR(D31,0)","v":0}]
["SUMA W ROKU",{"$f":"B31","v":0},0,"#DIV/0!",0]
[]
[]
[]
["KOMPETENCJE STAŁE"]
[null,null,"OCENA","LICZNIK","DZIELENIE"]
[{"$f":"'ARKUSZ OCENY'!A74","v":"Efektywność działania"},{"$f":"'ARKUSZ OCENY'!B74","v":"Powierzone zadania realizuje samodzielnie i zgodnie z ustaleniami."},{"$f":"IF('ARKUSZ OCENY'!D74=\"A\",1,IF('ARKUSZ OCENY'!D74=\"B\",2,IF('ARKUSZ OCENY'!D74=\"C\",3,IF('ARKUSZ OCENY'!D74=\"WYBÓR\",0))))","v":0},{"$f":"IF(C38=1,1,IF(C38=2,1,IF(C38=3,1,IF(C38=0,0))))","v":0}]
[{"$f":"'ARKUSZ OCENY'!A75","v":"Efektywność działania"},{"$f":"'ARKUSZ OCENY'!B75","v":"Pracuje sprawnie i skutecznie, nie rozprasza się."},{"$f":"IF('ARKUSZ OCENY'!D75=\"A\",1,IF('ARKUSZ OCENY'!D75=\"B\",2,IF('ARKUSZ OCENY'!D75=\"C\",3,IF('ARKUSZ OCENY'!D75=\"WYBÓR\",0))))","v":0},0]
[{"$f":"'ARKUSZ OCENY'!A76","v":"Efektywność działania"},{"$f":"'ARKUSZ OCENY'!B76","v":"Osiąga cele i jakościowo dobrze realizuje zadania."},{"$f":"IF('ARKUSZ OCENY'!D76=\"A\",1,IF('ARKUSZ OCENY'!D76=\"B\",2,IF('ARKUSZ OCENY'!D76=\"C\",3,IF('ARKUSZ OCENY'!D76=\"WYBÓR\",0))))","v":0},0]
[{"$f":"'ARKUSZ OCENY'!A77","v":"Efektywność działania"},{"$f":"'ARKUSZ OCENY'!B77","v":"Efekty jego pracy są widoczne i znaczące dla efektów pracy całego zespołu."},{"$f":"IF('ARKUSZ OCENY'!D77=\"A\",1,IF('ARKUSZ OCENY'!D77=\"B\",2,IF('ARKUSZ OCENY'!D77=\"C\",3,IF('ARKUSZ OCENY'!D77=\"WYBÓR\",0))))","v":0},0]
[{"$f":"'ARKUSZ OCENY'!A78","v":"Efektywność działania"},{"$f":"'ARKUSZ OCENY'!B78","v":"Dobiera tempo pracy do zamierzonych celów."},{"$f":"IF('ARKUSZ OCENY'!D78=\"A\",1,IF('ARKUSZ OCENY'!D78=\"B\",2,IF('ARKUSZ OCENY'!D78=\"C\",3,IF('ARKUSZ OCENY'!D78=\"WYBÓR\",0))))","v":0},0]
[{"$f":"'ARKUSZ OCENY'!A79","v":"Efektywność działania"},{"$f":"'ARKUSZ OCENY'!B79","v":"Kontroluje jakość wykonywanej pracy – stara się określić normy i miary wysokiej jakości."},{"$f":"IF('ARKUSZ OCENY'!D79=\"A\",1,IF('ARKUSZ OCENY'!D79=\"B\",2,IF('ARKUSZ OCENY'!D79=\"C\",3,IF('ARKUSZ OCENY'!D79=\"WYBÓR\",0))))","v":0},0]
[{"$f":"'ARKUSZ OCENY'!A80","v":"Praca zespołowa"},{"$f":"'ARKUSZ OCENY'!B80","v":"Angażuje cały zespół, potrafi zachęcić innych do wytrwałej pracy."},{"$f":"IF('ARKUSZ OCENY'!D80=\"A\",1,IF('ARKUSZ OCENY'!D80=\"B\",2,IF('ARKUSZ OCENY'!D80=\"C\",3,IF('ARKUSZ OCENY'!D80=\"WYBÓR\",0))))","v":0},0]
[{"$f":"'ARKUSZ OCENY'!A81","v":"Praca zespołowa"},{"$f":"'ARKUSZ OCENY'!B81","v":"Buduje atmosferę współpracy w swoim zespole. Potrafi nawiązać dobrą współpracę z innymi zespołami. Nie odmawia udziału w pracach zespołu."},{"$f":"IF('ARKUSZ OCENY'!D81=\"A\",1,IF('ARKUSZ OCENY'!D81=\"B\",2,IF('ARKUSZ OCENY'!D81=\"C\",3,IF('ARKUSZ OCENY'!D81=\"WYBÓR\",0))))","v":0},0]
[{"$f":"'ARKUSZ OCENY'!A82","v":"Praca zespołowa"},{"$f":"'ARKUSZ OCENY'!B82","v":"Dobrze pracuje w zespole. Jest wytrwały i konsekwentny w zespołowym dążeniu do celu. Wspiera  innych członków, potrafi uczyć innych."},{"$f":"IF('ARKUSZ OCENY'!D82=\"A\",1,IF('ARKUSZ OCENY'!D82=\"B\",2,IF('ARKUSZ OCENY'!D82=\"C\",3,IF('ARKUSZ OCENY'!D82=\"WYBÓR\",0))))","v":0},0]
[{"$f":"'ARKUSZ OCENY'!A83","v":"Praca zespołowa"},{"$f":"'ARKUSZ OCENY'!B83","v":"Jest otwarty na pomysły członków  zespołu, wysłuchuje je, omawia, analizuje, nie zawsze potrafi wesprzeć zgłaszane pomysły. Szanuje opinie innych."},{"$f":"IF('ARKUSZ OCENY'!D83=\"A\",1,IF('ARKUSZ OCENY'!D83=\"B\",2,IF('ARKUSZ OCENY'!D83=\"C\",3,IF('ARKUSZ OCENY'!D83=\"WYBÓR\",0))))","v":0},0]
[{"$f":"'ARKUSZ OCENY'!A84","v":"Praca zespołowa"},{"$f":"'ARKUSZ OCENY'!B84","v":"Podejmuje własne inicjatywy w pracy zespołowej, proponuje nowe rozwiązania, sam podejmuje się zadań ."},{"$f":"IF('ARKUSZ OCENY'!D84=\"A\",1,IF('ARKUSZ OCENY'!D84=\"B\",2,IF('ARKUSZ OCENY'!D84=\"C\",3,IF('ARKUSZ OCENY'!D84=\"WYBÓR\",0))))","v":0},0]
[{"$f":"'ARKUSZ OCENY'!A85","v":"Praca zespołowa"},{"$f":"'ARKUSZ OCENY'!B85","v":"Potrafi dobrze pracować w zespole przyjmując pewne specyficzne role, identyfikuje się z zespołem. Zna i rozumie korzyści płynące z pracy zespołowej. "},{"$f":"IF('ARKUSZ OCENY'!D85=\"A\",1,IF('ARKUSZ OCENY'!D85=\"B\",2,IF('ARKUSZ OCENY'!D85=\"C\",3,IF('ARKUSZ OCENY'!D85=\"WYBÓR\",0))))","v":0},0]
[{"$f":"'ARKUSZ OCENY'!A86","v":"Praca zespołowa"},{"$f":"'ARKUSZ OCENY'!B86","v":"Wyraża swoje zdanie i przekazuje informacje w sposób klarowny i zrozumiały dla innych."},{"$f":"IF('ARKUSZ OCENY'!D86=\"A\",1,IF('ARKUSZ OCENY'!D86=\"B\",2,IF('ARKUSZ OCENY'!D86=\"C\",3,IF('ARKUSZ OCENY'!D86=\"WYBÓR\",0))))","v":0},0]
[{"$f":"'ARKUSZ OCENY'!A87","v":"Komunikatywność "},{"$f":"'ARKUSZ OCENY'!B87","v":"Budując własną argumentację opiera się na faktach. "},{"$f":"IF('ARKUSZ OCENY'!D87=\"A\",1,IF('ARKUSZ OCENY'!D87=\"B\",2,IF('ARKUSZ OCENY'!D87=\"C\",3,IF('ARKUSZ OCENY'!D87=\"WYBÓR\",0))))","v":0},0]
[{"$f":"'ARKUSZ OCENY'!A88","v":"Komunikatywność "},{"$f":"'ARKUSZ OCENY'!B88","v":"Komunikowanie się z innymi przychodzi mu z łatwością, także w nowych okolicznościach. "},{"$f":"IF('ARKUSZ OCENY'!D88=\"A\",1,IF('ARKUSZ OCENY'!D88=\"B\",2,IF('ARKUSZ OCENY'!D88=\"C\",3,IF('ARKUSZ OCENY'!D88=\"WYBÓR\",0))))","v":0},0]
[{"$f":"'ARKUSZ OCENY'!A89","v":"Komunikatywność "},{"$f":"'ARKUSZ OCENY'!B89","v":"Odpowiada na  e - maile, faksy i listy do niego skierowane.   "},{"$f":"IF('ARKUSZ OCENY'!D89=\"A\",1,IF('ARKUSZ OCENY'!D89=\"B\",2,IF('ARKUSZ OCENY'!D89=\"C\",3,IF('ARKUSZ OCENY'!D89=\"WYBÓR\",0))))","v":0},0]
[{"$f":"'ARKUSZ OCENY'!A90","v":"Komunikatywność "},{"$f":"'ARKUSZ OCENY'!B90","v":"Wypowiada się w sposób swobodny, zrozumiały, jasny i logiczny."},{"$f":"IF('ARKUSZ OCENY'!D90=\"A\",1,IF('ARKUSZ OCENY'!D90=\"B\",2,IF('ARKUSZ OCENY'!D90=\"C\",3,IF('ARKUSZ OCENY'!D90=\"WYBÓR\",0))))","v":0},0]
[{"$f":"'ARKUSZ OCENY'!A91","v":"Komunikatywność "},{"$f":"'ARKUSZ OCENY'!B91","v":"Dopytuje, kiedy nie jest pewien sensu wypowiedzi rozmówcy."},{"$f":"IF('ARKUSZ OCENY'!D91=\"A\",1,IF('ARKUSZ OCENY'!D91=\"B\",2,IF('ARKUSZ OCENY'!D91=\"C\",3,IF('ARKUSZ OCENY'!D91=\"WYBÓR\",0))))","v":0},0]
[{"$f":"'ARKUSZ OCENY'!A92","v":"Komunikatywność "},{"$f":"'ARKUSZ OCENY'!B92","v":"Słucha aktywnie swojego rozmówcy. "},{"$f":"IF('ARKUSZ OCENY'!D92=\"A\",1,IF('ARKUSZ OCENY'!D92=\"B\",2,IF('ARKUSZ OCENY'!D92=\"C\",3,IF('ARKUSZ OCENY'!D92=\"WYBÓR\",0))))","v":0},0]
[{"$f":"'ARKUSZ OCENY'!A93","v":"Komunikatywność "},{"$f":"'ARKUSZ OCENY'!B93","v":"Rozumie sens wypowiedzi rozmówcy."},{"$f":"IF('ARKUSZ OCENY'!D93=\"A\",1,IF('ARKUSZ OCENY'!D93=\"B\",2,IF('ARKUSZ OCENY'!D93=\"C\",3,IF('ARKUSZ OCENY'!D93=\"WYBÓR\",0))))","v":0},0]
[{"$f":"'ARKUSZ OCENY'!A94","v":"Komunikatywność "},{"$f":"'ARKUSZ OCENY'!B94","v":"Upewnia się jak został zrozumiany przez odbiorcę . "},{"$f":"IF('ARKUSZ OCENY'!D94=\"A\",1,IF('ARKUSZ OCENY'!D94=\"B\",2,IF('ARKUSZ OCENY'!D94=\"C\",3,IF('ARKUSZ OCENY'!D94=\"WYBÓR\",0))))","v":0},0]
[{"$f":"'ARKUSZ OCENY'!A95","v":"Samodzielność "},{"$f":"'ARKUSZ OCENY'!B95","v":"Kontroluje wykonywane przez siebie zadania."},{"$f":"IF('ARKUSZ OCENY'!D95=\"A\",1,IF('ARKUSZ OCENY'!D95=\"B\",2,IF('ARKUSZ OCENY'!D95=\"C\",3,IF('ARKUSZ OCENY'!D95=\"WYBÓR\",0))))","v":0},0]
[{"$f":"'ARKUSZ OCENY'!A96","v":"Samodzielność "},{"$f":"'ARKUSZ OCENY'!B96","v":"Nie potrzebuje zewnętrznego nadzoru. "},{"$f":"IF('ARKUSZ OCENY'!D96=\"A\",1,IF('ARKUSZ OCENY'!D96=\"B\",2,IF('ARKUSZ OCENY'!D96=\"C\",3,IF('ARKUSZ OCENY'!D96=\"WYBÓR\",0))))","v":0},0]
[{"$f":"'ARKUSZ OCENY'!A97","v":"Samodzielność "},{"$f":"'ARKUSZ OCENY'!B97","v":"Planuje swoją pracę w sposób niezależny."},{"$f":"IF('ARKUSZ OCENY'!D97=\"A\",1,IF('ARKUSZ OCENY'!D97=\"B\",2,IF('ARKUSZ OCENY'!D97=\"C\",3,IF('ARKUSZ OCENY'!D97=\"WYBÓR\",0))))","v":0},0]
[{"$f":"'ARKUSZ OCENY'!A98","v":"Samodzielność "},{"$f":"'ARKUSZ OCENY'!B98","v":"Posiada wewnętrzną dyscyplinę."},{"$f":"IF('ARKUSZ OCENY'!D98=\"A\",1,IF('ARKUSZ OCENY'!D98=\"B\",2,IF('ARKUSZ OCENY'!D98=\"C\",3,IF('ARKUSZ OCENY'!D98=\"WYBÓR\",0))))","v":0},0]
[{"$f":"'ARKUSZ OCENY'!A99","v":"Samodzielność "},{"$f":"'ARKUSZ OCENY'!B99","v":"Realizuje zadania bez zewnętrznego i bezpośredniego nadzoru. "},{"$f":"IF('ARKUSZ OCENY'!D99=\"A\",1,IF('ARKUSZ OCENY'!D99=\"B\",2,IF('ARKUSZ OCENY'!D99=\"C\",3,IF('ARKUSZ OCENY'!D99=\"WYBÓR\",0))))","v":0},0]
[{"$f":"'ARKUSZ OCENY'!A101","v":"Kompetencja stanowiskowa 1"},{"$f":"'ARKUSZ OCENY'!B101","v":""},{"$f":"IF('ARKUSZ OCENY'!D101=\"A\",1,IF('ARKUSZ OCENY'!D101=\"B\",2,IF('ARKUSZ OCENY'!D101=\"C\",3,IF('ARKUSZ OCENY'!D101=\"WYBÓR\",0))))","v":0},0]
[{"$f":"'ARKUSZ OCENY'!A102","v":"Kompetencja stanowiskowa 1"},{"$f":"'ARKUSZ OCENY'!B102","v":""},{"$f":"IF('ARKUSZ OCENY'!D102=\"A\",1,IF('ARKUSZ OCENY'!D102=\"B\",2,IF('ARKUSZ OCENY'!D102=\"C\",3,IF('ARKUSZ OCENY'!D102=\"WYBÓR\",0))))","v":0},0]
[{"$f":"'ARKUSZ OCENY'!A103","v":"Kompetencja stanowiskowa 1"},{"$f":"'ARKUSZ OCENY'!B103","v":""},{"$f":"IF('ARKUSZ OCENY'!D103=\"A\",1,IF('ARKUSZ OCENY'!D103=\"B\",2,IF('ARKUSZ OCENY'!D103=\"C\",3,IF('ARKUSZ OCENY'!D103=\"WYBÓR\",0))))","v":0},0]
[{"$f":"'ARKUSZ OCENY'!A104","v":"Kompetencja stanowiskowa 1"},{"$f":"'ARKUSZ OCENY'!B104","v":""},{"$f":"IF('ARKUSZ OCENY'!D104=\"A\",1,IF('ARKUSZ OCENY'!D104=\"B\",2,IF('ARKUSZ OCENY'!D104=\"C\",3,IF('ARKUSZ OCENY'!D104=\"WYBÓR\",0))))","v":0},0]
[{"$f":"'ARKUSZ OCENY'!A105","v":"Kompetencja stanowiskowa 1"},{"$f":"'ARKUSZ OCENY'!B105","v":""},{"$f":"IF('ARKUSZ OCENY'!D105=\"A\",1,IF('ARKUSZ OCENY'!D105=\"B\",2,IF('ARKUSZ OCENY'!D105=\"C\",3,IF('ARKUSZ OCENY'!D105=\"WYBÓR\",0))))","v":0},0]
[{"$f":"'ARKUSZ OCENY'!A106","v":"Kompetencja stanowiskowa 1"},{"$f":"'ARKUSZ OCENY'!B106","v":""},{"$f":"IF('ARKUSZ OCENY'!D106=\"A\",1,IF('ARKUSZ OCENY'!D106=\"B\",2,IF('ARKUSZ OCENY'!D106=\"C\",3,IF('ARKUSZ OCENY'!D106=\"WYBÓR\",0))))","v":0},0]
[{"$f":"'ARKUSZ OCENY'!A107","v":"Kompetencja stanowiskowa 1"},{"$f":"'ARKUSZ OCENY'!B107","v":""},{"$f":"IF('ARKUSZ OCENY'!D107=\"A\",1,IF('ARKUSZ OCENY'!D107=\"B\",2,IF('ARKUSZ OCENY'!D107=\"C\",3,IF('ARKUSZ OCENY'!D107=\"WYBÓR\",0))))","v":0},0]
[{"$f":"'ARKUSZ OCENY'!A108","v":"Kompetencja stanowiskowa 1"},{"$f":"'ARKUSZ OCENY'!B108","v":""},{"$f":"IF('ARKUSZ OCENY'!D108=\"A\",1,IF('ARKUSZ OCENY'!D108=\"B\",2,IF('ARKUSZ OCENY'!D108=\"C\",3,IF('ARKUSZ OCENY'!D108=\"WYBÓR\",0))))","v":0},0]
[{"$f":"'ARKUSZ OCENY'!A109","v":"Kompetencja stanowiskowa 1"},{"$f":"'ARKUSZ OCENY'!B109","v":""},{"$f":"IF('ARKUSZ OCENY'!D109=\"A\",1,IF('ARKUSZ OCENY'!D109=\"B\",2,IF('ARKUSZ OCENY'!D109=\"C\",3,IF('ARKUSZ OCENY'!D109=\"WYBÓR\",0))))","v":0},0]
[{"$f":"'ARKUSZ OCENY'!A110","v":"Kompetencja stanowiskowa 2"},{"$f":"'ARKUSZ OCENY'!B110","v":""},{"$f":"IF('ARKUSZ OCENY'!D110=\"A\",1,IF('ARKUSZ OCENY'!D110=\"B\",2,IF('ARKUSZ OCENY'!D110=\"C\",3,IF('ARKUSZ OCENY'!D110=\"WYBÓR\",0))))","v":0},0]
[{"$f":"'ARKUSZ OCENY'!A111","v":"Kompetencja stanowiskowa 2"},{"$f":"'ARKUSZ OCENY'!B111","v":""},{"$f":"IF('ARKUSZ OCENY'!D111=\"A\",1,IF('ARKUSZ OCENY'!D111=\"B\",2,IF('ARKUSZ OCENY'!D111=\"C\",3,IF('ARKUSZ OCENY'!D111=\"WYBÓR\",0))))","v":0},0]
[{"$f":"'ARKUSZ OCENY'!A112","v":"Kompetencja stanowiskowa 2"},{"$f":"'ARKUSZ OCENY'!B112","v":""},{"$f":"IF('ARKUSZ OCENY'!D112=\"A\",1,IF('ARKUSZ OCENY'!D112=\"B\",2,IF('ARKUSZ OCENY'!D112=\"C\",3,IF('ARKUSZ OCENY'!D112=\"WYBÓR\",0))))","v":0},0]
[{"$f":"'ARKUSZ OCENY'!A113","v":"Kompetencja stanowiskowa 2"},{"$f":"'ARKUSZ OCENY'!B113","v":""},{"$f":"IF('ARKUSZ OCENY'!D113=\"A\",1,IF('ARKUSZ OCENY'!D113=\"B\",2,IF('ARKUSZ OCENY'!D113=\"C\",3,IF('ARKUSZ OCENY'!D113=\"WYBÓR\",0))))","v":0},0]
[{"$f":"'ARKUSZ OCENY'!A114","v":"Kompetencja stanowiskowa 2"},{"$f":"'ARKUSZ OCENY'!B114","v":""},{"$f":"IF('ARKUSZ OCENY'!D114=\"A\",1,IF('ARKUSZ OCENY'!D114=\"B\",2,IF('ARKUSZ OCENY'!D114=\"C\",3,IF('ARKUSZ OCENY'!D114=\"WYBÓR\",0))))","v":0},0]
[{"$f":"'ARKUSZ OCENY'!A115","v":"Kompetencja stanowiskowa 2"},{"$f":"'ARKUSZ OCENY'!B115","v":""},{"$f":"IF('ARKUSZ OCENY'!D115=\"A\",1,IF('ARKUSZ OCENY'!D115=\"B\",2,IF('ARKUSZ OCENY'!D115=\"C\",3,IF('ARKUSZ OCENY'!D115=\"WYBÓR\",0))))","v":0},0]
[{"$f":"'ARKUSZ OCENY'!A116","v":"Kompetencja stanowiskowa 2"},{"$f":"'ARKUSZ OCENY'!B116","v":""},{"$f":"IF('ARKUSZ OCENY'!D116=\"A\",1,IF('ARKUSZ OCENY'!D116=\"B\",2,IF('ARKUSZ OCENY'!D116=\"C\",3,IF('ARKUSZ OCENY'!D116=\"WYBÓR\",0))))","v":0},0]
[{"$f":"'ARKUSZ OCENY'!A117","v":"Kompetencja stanowiskowa 2"},{"$f":"'ARKUSZ OCENY'!B117","v":""},{"$f":"IF('ARKUSZ OCENY'!D117=\"A\",1,IF('ARKUSZ OCENY'!D117=\"B\",2,IF('ARKUSZ OCENY'!D117=\"C\",3,IF('ARKUSZ OCENY'!D117=\"WYBÓR\",0))))","v":0},0]
[{"$f":"'ARKUSZ OCENY'!A118","v":"Kompetencja stanowiskowa 2"},{"$f":"'ARKUSZ OCENY'!B118","v":""},{"$f":"IF('ARKUSZ OCENY'!D118=\"A\",1,IF('ARKUSZ OCENY'!D118=\"B\",2,IF('ARKUSZ OCENY'!D118=\"C\",3,IF('ARKUSZ OCENY'!D118=\"WYBÓR\",0))))","v":0},0]
[{"$f":"'ARKUSZ OCENY'!A119","v":"Kompetencja stanowiskowa 3"},{"$f":"'ARKUSZ OCENY'!B119","v":""},{"$f":"IF('ARKUSZ OCENY'!D119=\"A\",1,IF('ARKUSZ OCENY'!D119=\"B\",2,IF('ARKUSZ OCENY'!D119=\"C\",3,IF('ARKUSZ OCENY'!D119=\"WYBÓR\",0))))","v":0},0]
[{"$f":"'ARKUSZ OCENY'!A120","v":"Kompetencja stanowiskowa 3"},{"$f":"'ARKUSZ OCENY'!B120","v":""},{"$f":"IF('ARKUSZ OCENY'!D120=\"A\",1,IF('ARKUSZ OCENY'!D120=\"B\",2,IF('ARKUSZ OCENY'!D120=\"C\",3,IF('ARKUSZ OCENY'!D120=\"WYBÓR\",0))))","v":0},0]
[{"$f":"'ARKUSZ OCENY'!A121","v":"Kompetencja stanowiskowa 3"},{"$f":"'ARKUSZ OCENY'!B121","v":""},{"$f":"IF('ARKUSZ OCENY'!D121=\"A\",1,IF('ARKUSZ OCENY'!D121=\"B\",2,IF('ARKUSZ OCENY'!D121=\"C\",3,IF('ARKUSZ OCENY'!D121=\"WYBÓR\",0))))","v":0},0]
[{"$f":"'ARKUSZ OCENY'!A122","v":"Kompetencja stanowiskowa 3"},{"$f":"'ARKUSZ OCENY'!B122","v":""},{"$f":"IF('ARKUSZ OCENY'!D122=\"A\",1,IF('ARKUSZ OCENY'!D122=\"B\",2,IF('ARKUSZ OCENY'!D122=\"C\",3,IF('ARKUSZ OCENY'!D122=\"WYBÓR\",0))))","v":0},0]
[{"$f":"'ARKUSZ OCENY'!A123","v":"Kompetencja stanowiskowa 3"},{"$f":"'ARKUSZ OCENY'!B123","v":""},{"$f":"IF('ARKUSZ OCENY'!D123=\"A\",1,IF('ARKUSZ OCENY'!D123=\"B\",2,IF('ARKUSZ OCENY'!D123=\"C\",3,IF('ARKUSZ OCENY'!D123=\"WYBÓR\",0))))","v":0},0]
[{"$f":"'ARKUSZ OCENY'!A124","v":"Kompetencja stanowiskowa 3"},{"$f":"'ARKUSZ OCENY'!B124","v":""},{"$f":"IF('ARKUSZ OCENY'!D124=\"A\",1,IF('ARKUSZ OCENY'!D124=\"B\",2,IF('ARKUSZ OCENY'!D124=\"C\",3,IF('ARKUSZ OCENY'!D124=\"WYBÓR\",0))))","v":0},0]
[{"$f":"'ARKUSZ OCENY'!A125","v":"Kompetencja stanowiskowa 3"},{"$f":"'ARKUSZ OCENY'!B125","v":""},{"$f":"IF('ARKUSZ OCENY'!D125=\"A\",1,IF('ARKUSZ OCENY'!D125=\"B\",2,IF('ARKUSZ OCENY'!D125=\"C\",3,IF('ARKUSZ OCENY'!D125=\"WYBÓR\",0))))","v":0},0]
[{"$f":"'ARKUSZ OCENY'!A126","v":"Kompetencja stanowiskowa 3"},{"$f":"'ARKUSZ OCENY'!B126","v":""},{"$f":"IF('ARKUSZ OCENY'!D126=\"A\",1,IF('ARKUSZ OCENY'!D126=\"B\",2,IF('ARKUSZ OCENY'!D126=\"C\",3,IF('ARKUSZ OCENY'!D126=\"WYBÓR\",0))))","v":0},0]
[{"$f":"'ARKUSZ OCENY'!A127","v":"Kompetencja stanowiskowa 3"},{"$f":"'ARKUSZ OCENY'!B127","v":""},{"$f":"IF('ARKUSZ OCENY'!D127=\"A\",1,IF('ARKUSZ OCENY'!D127=\"B\",2,IF('ARKUSZ OCENY'!D127=\"C\",3,IF('ARKUSZ OCENY'!D127=\"WYBÓR\",0))))","v":0},0]
[null,null,{"$f":"SUM(C38:C90)","v":0},0,{"$f":"C91/D91","v":"#DIV/0!"},{"$f":"IFERROR(E91,0)","v":0}]
[]
[]
[]
[{"$f":"'ARKUSZ OCENY'!A129","v":"Kierowanie zespołem"},{"$f":"'ARKUSZ OCENY'!B129","v":"Informuje podwładnych o przebiegu wykonywanych zadań, szczególnie w sytuacji,gdy działania wymagają korekty, zmian czy będą miały inny wpływ na rytm pracy poszczególnych osób. "},{"$f":"IF('ARKUSZ OCENY'!D129=\"A\",1,IF('ARKUSZ OCENY'!D129=\"B\",2,IF('ARKUSZ OCENY'!D129=\"C\",3,IF('ARKUSZ OCENY'!D129=\"WYBÓR\",0))))","v":0},{"$f":"IF(C95=1,1,IF(C95=2,1,IF(C95=3,1,IF(C95=0,0))))","v":0}]
[{"$f":"'ARKUSZ OCENY'!A130","v":"Kierowanie zespołem"},{"$f":"'ARKUSZ OCENY'!B130","v":"Na bieżąco monitoruje i ocenia wykonanie zadań pod względem czasu oraz poprawności ich realizacji i koryguje działania, gdy jest taka potrzeba lub przerywa, gdy problem wymaga konsultacji czy zmian. "},{"$f":"IF('ARKUSZ OCENY'!D130=\"A\",1,IF('ARKUSZ OCENY'!D130=\"B\",2,IF('ARKUSZ OCENY'!D130=\"C\",3,IF('ARKUSZ OCENY'!D130=\"WYBÓR\",0))))","v":0},0]
[{"$f":"'ARKUSZ OCENY'!A131","v":"Kierowanie zespołem"},{"$f":"'ARKUSZ OCENY'!B131","v":"W przypadku identyfikacji konfliktu mającego znamiona wykroczenia (mobbing, szantaż, dyskryminacja) reaguje zgodnie z przyjętymi procedurami. "},{"$f":"IF('ARKUSZ OCENY'!D131=\"A\",1,IF('ARKUSZ OCENY'!D131=\"B\",2,IF('ARKUSZ OCENY'!D131=\"C\",3,IF('ARKUSZ OCENY'!D131=\"WYBÓR\",0))))","v":0},0]
[{"$f":"'ARKUSZ OCENY'!A132","v":"Kierowanie zespołem"},{"$f":"'ARKUSZ OCENY'!B132","v":"Deleguje zadania i  konsekwentnie nadzoruje ich wykonywanie."},{"$f":"IF('ARKUSZ OCENY'!D132=\"A\",1,IF('ARKUSZ OCENY'!D132=\"B\",2,IF('ARKUSZ OCENY'!D132=\"C\",3,IF('ARKUSZ OCENY'!D132=\"WYBÓR\",0))))","v":0},0]
[{"$f":"'ARKUSZ OCENY'!A133","v":"Kierowanie zespołem"},{"$f":"'ARKUSZ OCENY'!B133","v":"W przypadku zauważenia nieporozumień między współpracownikami lub sytuacji, które mogą do tego prowadzić, reaguje. "},{"$f":"IF('ARKUSZ OCENY'!D133=\"A\",1,IF('ARKUSZ OCENY'!D133=\"B\",2,IF('ARKUSZ OCENY'!D133=\"C\",3,IF('ARKUSZ OCENY'!D133=\"WYBÓR\",0))))","v":0},0]
[{"$f":"'ARKUSZ OCENY'!A134","v":"Kierowanie zespołem"},{"$f":"'ARKUSZ OCENY'!B134","v":"Przyjmuje odpowiedzialność za własne decyzje oraz wyniki pracy zespołu , zarówno w sytuacji sukcesów, jak i porażek. "},{"$f":"IF('ARKUSZ OCENY'!D134=\"A\",1,IF('ARKUSZ OCENY'!D134=\"B\",2,IF('ARKUSZ OCENY'!D134=\"C\",3,IF('ARKUSZ OCENY'!D134=\"WYBÓR\",0))))","v":0},0]
[{"$f":"'ARKUSZ OCENY'!A135","v":"Kierowanie zespołem"},{"$f":"'ARKUSZ OCENY'!B135","v":"Chwali i docenia indywidualne wysiłki pracowników oraz osiągnięte przez nich rezultaty – oznacza to, że mówi o ich rozwiązaniach na forum."},{"$f":"IF('ARKUSZ OCENY'!D135=\"A\",1,IF('ARKUSZ OCENY'!D135=\"B\",2,IF('ARKUSZ OCENY'!D135=\"C\",3,IF('ARKUSZ OCENY'!D135=\"WYBÓR\",0))))","v":0},0]
[{"$f":"'ARKUSZ OCENY'!A136","v":"Kierowanie zespołem"},{"$f":"'ARKUSZ OCENY'!B136","v":"Zadania rozdziela między pracowników zgodnie z ich kompetencjami (wiedzą, umiejętnościami, doświadczeniem i uprawnieniami)."},{"$f":"IF('ARKUSZ OCENY'!D136=\"A\",1,IF('ARKUSZ OCENY'!D136=\"B\",2,IF('ARKUSZ OCENY'!D136=\"C\",3,IF('ARKUSZ OCENY'!D136=\"WYBÓR\",0))))","v":0},0]
[{"$f":"'ARKUSZ OCENY'!A137","v":"Kierowanie zespołem"},{"$f":"'ARKUSZ OCENY'!B137","v":"Przyznaje się do błędów popełnionych przez podwładnych, umie o nich powiedzieć i je omówić zarówno z podwładnymi, jak i poza ich gronem, analizuje błędy i przedstawia wyciągnięte wnioski."},{"$f":"IF('ARKUSZ OCENY'!D137=\"A\",1,IF('ARKUSZ OCENY'!D137=\"B\",2,IF('ARKUSZ OCENY'!D137=\"C\",3,IF('ARKUSZ OCENY'!D137=\"WYBÓR\",0))))","v":0},0]
[{"$f":"'ARKUSZ OCENY'!A138","v":"Kierowanie zespołem"},{"$f":"'ARKUSZ OCENY'!B138","v":"Zapewnia zespołowi niezbędne zasoby (narzędzia, materiały, informacje, sprzęt) potrzebne do realizacji zadań (dzięki temu nie wprowadza niepotrzebnych zakłóceń  i opóźnień). "},{"$f":"IF('ARKUSZ OCENY'!D138=\"A\",1,IF('ARKUSZ OCENY'!D138=\"B\",2,IF('ARKUSZ OCENY'!D138=\"C\",3,IF('ARKUSZ OCENY'!D138=\"WYBÓR\",0))))","v":0},0]
[null,null,{"$f":"SUM(C95:C104)","v":0},0,{"$f":"C105/D105","v":"#DIV/0!"},{"$f":"IFERROR(E105,0)","v":0}]
[]
[null,"OCENA ZADAŃ",null,null,null,{"$f":"K8","v":0}]
[]
[null,"OBLICZENIE KOMPETENCJI",null,null,null,{"$f":"(F91*0.5)+(F105*0.5)","v":0}]
[]
[null,"OCENA WAŻONA",null,null,null,{"$f":"(F107*0.6)+(F109*0.4)","v":0}]
[]
[]
[]
["OCENA ROCZNA SŁOWNA"]
[{"$f":"IF(F111>0,F111<=1.9)*1+IF(F111>1.9,F111<=2.1)*2+IF(F111>2.1,F111<=2.5)*3+IF(F111>2.5,F111<=3)*4+IF(F111=0,5)","v":5},{"$nulls":7},1.0,"W ≤ 1,90","Poniżej oczekiwań"]
[{"$nulls":8},2.0,"1,90 < W  ≤ 2,10","Spełniający częściowo oczekiwania"]
[{"$f":"IF(A116=1,\"Poniżej oczekiwań\",IF(A116=2,\"Spełniający częściowo oczekiwania\",IF(A116=3,\"Zgodnie z oczekiwaniami\",IF(A116=4,\"Powyżej oczekiwań\",IF(A116=5,\"Brak oceny\")))))","v":"Brak oceny"},{"$nulls":7},3.0,"2,10 < W  ≤ 2,50","Zgodnie z oczekiwaniami"]
[{"$nulls":8},4.0,"2,50 < W  ≤  3,00","Powyżej oczekiwań"]